Workbook

Sheet Índice
B2: ÍNDICE DEL ANÁLISIS FINANCIERO
A3: Gráfica
B4: Cuadro 3.1 INGRESOS POR CONCEPTOS DE VENTAS DE SERVICIOS
B5: Cuadro 5.1 COSTO EQUIPOS, MUEBLES Y ENSERES
B6: Cuadro 5.2 PRESUPUESTO DE MATERIA PRIMA
B7: Cuadro 5.3 PERSONAL TÉCNICO REQUERIDO - Descripción de cargos
B8: Cuadro 5.4 PERSONAL TÉCNICO REQUERIDO - Costos
B9: Cuadro 5.5 COSTOS DE ARRENDAMIENTO
B10: Cuadro 6.1 ACTIVIDADES, DURACIÓN Y PREDECESORAS
B11: Cuadro 7.1 ORGANIZACIÓN PARA LA EJECUCIÓN DEL PROYECTO - Descripción de cargos
B12: Cuadro 7.2 ORGANIZACIÓN PARA LA EJECUCIÓN DEL PROYECTO - Costos
B13: Cuadro 7.3 ORGANIZACIÓN ADMINISTRATIVA PARA LA OPERACIÓN DEL PROYECTO
B14: Cuadro 7.4 ORGANIZACIÓN ADMINISTRATIVA PARA LA OPERACIÓN DEL PROYECTO
B15: Cuadro 8.1 CAPITAL DE TRABAJO - SALDO DE EFECTIVO REQUERIDO EN CAJA
B16: Cuadro 8.2 CÁLCULO DE CAPITAL DE TRABAJO
B17: Cuadro 8.3 GASTOS PREOPERATIVOS
B18: Cuadro 8.4 INVERSIONES EN EL PROYECTO
B19: Cuadro 9.1 COSTO DE LA MANO DE OBRA DE LAS UNIDADES VENDIDAS
B20: Cuadro 9.2 COSTOS DE OPERACIÓN Y DE FINANCIACIÓN
B21: Cuadro 10.1 ACTIVOS TOTALES
B22: Cuadro 10.2 RECURSOS FINANCIEROS
B23: Cuadro 10.3 TABLA DE AMORTIZACIÓN DEL PRÉSTAMO (O CRÉDITO)
B24: Cuadro 11.1 ESTADO DE RESULTADOS O ESTADO DE PÉRDIDAS Y GANANCIAS
B25: Cuadro 11.2 FLUJO DE CAJA DEL PROYECTO
B26: Cuadro 11.3 BALANCE PROYECTADO
B27: Cuadro 11.4 INDICADORES PARA EL ANÁLISIS FINANCIERO
B28: Cuadro 11.5 PUNTO DE EQUILIBRIO
B29: Cuadro 11.6 PUNTO DE EQUILIBRIO DETALLADO
B30: Cuadro 11.7 VARIACIÓN DEL PRECIO DE VENTAS
B31: Cuadro 11.8 VARIACIÓN EN LOS COSTOS VARIABLES
B32: Cuadro 11.9 VARIACIÓN EN LOS COSTOS FIJOS
B33: Cuadro 12.1 FLUJO DE EFECTIVO NETO

Sheet Variables
A1: VARIACIÓN | B1: =Hoja7!B2 -> 1
A2: PORCENTAGE DE VARIACIÓN | B2: =1-B1 -> 0
A3: VARIABLES DEL PROYECTO | B3: AÑO | C3: 2014 | D3: 2015 | E3: 2016 | F3: 2017 | G3: 2018 | H3: 2019 | I3: 2020 | J3: 2021 | K3: 2022 | L3: 2023 | M3: 2024
A4: (A precios del Año 2014 del proyecto)
A5: Número de años del proyecto | B5: 11 | C5: 10
A6: Programa de servicio asesorías individuales | B6: =C6*$C$5 -> 1000 | C6: 100 | D6: =B6*D15 -> 20000000
A7: Programa de servicio actividades educativas (dos horas) | B7: =C7*$C$5 -> 100 | C7: 10 | D7: =B7*D16 -> 20000000
A8: Programa de servicio seminarios (por participante) | B8: =C8*$C$5 -> 1000 | C8: 100 | D8: 30000000
A9: Programa de servicio asesorías técnicas | B9: 250 | C9: 25 | D9: 112500000
A10: Programa de servicio cursos virtuales (adolescentes y jóvenes) | B10: 3150 | C10: 315 | D10: 37800000
A11: Programa de servicio cursos virtuales (padres y madres) | B11: 1150 | C11: 115 | D11: 17250000
A12: Programa de servicio cursos virtuales (docentes y profesionales) | B12: 1150 | C12: 115 | D12: 28750000
A13: TOTAL 100% DE PRODUCCION | B13: =SUM(B6:B12) -> 7800
A14: Programa De Produccion (Porcentaje) | D14: 0.65 | E14: 0.67 | F14: 0.7 | G14: 0.72 | H14: 0.77 | I14: 0.81 | J14: 0.86 | K14: 0.9 | L14: 0.95 | M14: 1
A15: Programa de venta asesorías individuales | D15: =20000*B1 -> 20000 | E15: =$D15 -> 20000 | F15: =$D15 -> 20000 | G15: 20000 | H15: 20000 | I15: 20000 | J15: 20000 | K15: 20000 | L15: 20000 | M15: 20000
A16: Programa de venta actividades educativas | D16: =200000*B1 -> 200000 | E16: =$D16 -> 200000 | F16: 200000 | G16: 200000 | H16: 200000 | I16: 200000 | J16: 200000 | K16: 200000 | L16: 200000 | M16: 200000
A17: Programa de venta seminarios (por participante) | D17: =30000*B1 -> 30000 | E17: 30000 | F17: 30000 | G17: 30000 | H17: 30000 | I17: 30000 | J17: 30000 | K17: 30000 | L17: 30000 | M17: 30000
A18: Programa de venta asesorías técnicas | D18: =450000*B1 -> 450000 | E18: 450000 | F18: 450000 | G18: 450000 | H18: 450000 | I18: 450000 | J18: 450000 | K18: 450000 | L18: 450000 | M18: 450000
A19: Programa de venta cursos virtuales (adolescentes y jóvenes) | D19: =12000*B1 -> 12000 | E19: 12000 | F19: 12000 | G19: 12000 | H19: 12000 | I19: 12000 | J19: 12000 | K19: 12000 | L19: 12000 | M19: 12000
A20: Programa de venta cursos virtuales (padres y madres) | D20: =15000*B1 -> 15000 | E20: 15000 | F20: 15000 | G20: 15000 | H20: 15000 | I20: 15000 | J20: 15000 | K20: 15000 | L20: 15000 | M20: 15000
A21: Programa de venta cursos virtuales (docentes y profesionales) | D21: =25000*B1 -> 25000 | E21: 25000 | F21: 25000 | G21: 25000 | H21: 25000 | I21: 25000 | J21: 25000 | K21: 25000 | L21: 25000 | M21: 25000
A22: PRECIO PROMEDIO | B22: =(ROUND((Cálculos!I41/Cálculos!I40),2))*Variables!B1 -> 34419.97
A23: Inversiones Fijas - Millones
A24: (Iniciales Y Reposiciones)
A25: * Terrenos | C25: 0
A26: * Edificios | C26: 0
A27: Depreciacion | B27: 10 | E27: =($C$26+$D$26)/$B$27 -> 0 | F27: 0 | G27: 0 | H27: 0 | I27: 0 | J27: 0
A28: * Maquinaria Y Equipo | C28: =Inversiones!D28 -> 350000
A29: Depreciacion | B29: 10 | D29: =$C$28/$B$29 -> 35000 | E29: 35000 | F29: 35000 | G29: 35000 | H29: 35000 | I29: 35000 | J29: 35000
A30: * Vehiculo | C30: 0
A31: Depreciacion | B31: 5 | E31: =$C$30/$B$31 -> 0 | F31: 0 | G31: 0 | H31: 0 | I31: 0 | J31: 0
A32: * Muebles Y Enseres | C32: =Inversiones!D57 -> 16983000
A33: Depreciacion | B33: 5 | E33: =$C$32/$B$33 -> 3396600 | F33: 3396600 | G33: 3396600 | H33: 3396600 | I33: 3396600 | J33: 3396600
A34: * Herramientas | C34: 0
A35: Depreciacion | B35: 10
A36: Total Depreciacion | E36: =SUM(E27:E35) -> 3431600 | F36: 3431600 | G36: 3431600 | H36: 3431600 | I36: 3431600 | J36: 3431600
A37: Saldo En Libros Activos Depreciables | D37: =(J27*12)+(J29*2)+(J33*2)+C25 -> 6863200
A38: Gastos Preoperativos (Millones) | B38: 5 | C38: =Inversiones!B87 -> 5610000
A39: Amortizacion Diferidos | E39: =Cálculos!D79 -> 1122000 | F39: =Cálculos!E79 -> 1122000 | G39: =Cálculos!F79 -> 1122000 | H39: =Cálculos!G79 -> 1122000 | I39: =Cálculos!H79 -> 0 | J39: =Cálculos!I79 -> 0
A40: Costo Unitarios En Dolares
A41: * Materiales E Insumos
A42: * Mano De Obra
A43: Gastos Generales De Fabricacion
A44: Gastos Generales De Administracion
A45: Gastos Generales De Ventas
A46: Gastos Generales De Distribucion
A47: Tasa De Impuestos | B47: 0.3
A48: Dividendos (Porcentaje De Utilidades Netas | B48: 0
A49: Prestamos Bancarios | C49: 10000000
A50: Credito Abastecedores
A51: Rendimientos Financieros
A52: Otros Recursos (Arrendamientos-Participaciones)
A53: Costos Financieros (Intereses En Millones) | B53: 0.24 | D53: =$C$49*$B$53 -> 2400000 | E53: =(C49-D54)*$B$53 -> 2000000 | F53: =(C49-(D54+E54))*B53 -> 1600000 | G53: =(C49-(D54+E54+F54))*B53 -> 1200000 | H53: =(C49-(D54+E54+F54+G54))*B53 -> 800000 | I53: =(C49-(D54+E54+F54+G54+H54))*B53 -> 400000
A54: Pago De Prestamos (En Millones) | B54: 6 | D54: =$C$49/$B$54 -> 1666666.667 | E54: =$C$49/$B$54 -> 1666666.667 | F54: =$C$49/$B$54 -> 1666666.667 | G54: =$C$49/$B$54 -> 1666666.667 | H54: =$C$49/$B$54 -> 1666666.667 | I54: 0
A55: NECESIDADES MINIMAS DE ACTIVOS Y PASIVOS CORRIENTES
B56: DIAS DE COBERTURA
A57: Efectivo En Caja Para Cubrir:
A58: * Materiales E Insumos | B58: 10
A59: * Mano De Obra Directa | B59: 10
A60: * Gastos Generales De Fabricacion | B60: 10
A61: * Gastos Generales De Administracion | B61: 10
A62: * Gastos Generales De Ventas | B62: 10
A63: * Gastos Generales De Distribucion | B63: 10
A64: Cuentas Por Cobrar | B64: 30
A65: Existencias:
A66: * Materiales E Insumos | B66: 30
A67: * Productos En Procesos | B67: 0
A68: * Productos Terminados | B68: 0
A69: * Inventarios De Repuestos | B69: 0
A70: Cuentas Por Pagar
A71: * Materiales E Insumos | B71: 60
A72: * Mano De Obra Directa | B72: 0
A73: * Gastos Generales De Fabricacion | B73: 0
A74: * Gastos Generales De Administracion | B74: 0
A75: * Gastos Generales De Ventas | B75: 0
A76: * Gastos Generales De Distribucion | B76: 0
A77: Otros Ingresos
A78: Otros Egresos
A79: Capital De Trabajo (Calculado Por El Programa)
A80: EVALUACION FINANCIERA DEL PROYECTO
A81: Tasa De Inflacion | B81: 0.2
A82: Tasa De Interes De Oportunidad Del Inversionista | B82: =(1+B83)/(1+B81)-1 -> 0.1
A83: * En Terminos Corrientes Anual | B83: 0.32
A84: * En Terminos Constantes Anual | B84: 0.1
A85: Tasa Para Evaluacion | B85: 0.1

Sheet Cálculos
A2: Cuadro 3.1
A3: INGRESOS POR CONCEPTOS DE VENTAS DE SERVICIOS
A4: (Millones del año 2014)
A6: Fase | B6: Inversión | D6: Operacional
A8: Año | B8: =+Variables!C$3 -> 2014 | C8: =+Variables!D$3 -> 2015 | D8: =+Variables!E$3 -> 2016 | E8: =+Variables!F$3 -> 2017 | F8: =+Variables!G$3 -> 2018 | G8: =+Variables!H$3 -> 2019 | H8: =+Variables!I$3 -> 2020 | I8: =+Variables!J$3 -> 2021 | J8: =+Variables!K$3 -> 2022 | K8: =+Variables!L$3 -> 2023 | L8: =+Variables!M$3 -> 2024
A10: Nivel de Producción | C10: =+Variables!D14 -> 0.65 | D10: =+Variables!E14 -> 0.67 | E10: =+Variables!F14 -> 0.7 | F10: =+Variables!G14 -> 0.72 | G10: =+Variables!H14 -> 0.77 | H10: =+Variables!I14 -> 0.81 | I10: =+Variables!J14 -> 0.86 | J10: =+Variables!K14 -> 0.9 | K10: =+Variables!L14 -> 0.95 | L10: =+Variables!M14 -> 1
A11: 1. ASESORÍAS INDIVIDUALES
A12: Unidades vendidas | C12: =+ROUND((C10*Variables!$B$6),-2) -> 700 | D12: =+ROUND((D10*Variables!$B$6),-2) -> 700 | E12: =+ROUND((E10*Variables!$B$6),-2) -> 700 | F12: =+ROUND((F10*Variables!$B$6),-2) -> 700 | G12: =+ROUND((G10*Variables!$B$6),-2) -> 800 | H12: =+ROUND((H10*Variables!$B$6),-2) -> 800 | I12: =+ROUND((I10*Variables!$B$6),-2) -> 900 | J12: =+ROUND((J10*Variables!$B$6),-2) -> 900 | K12: =+ROUND((K10*Variables!$B$6),-2) -> 1000 | L12: =+ROUND((L10*Variables!$B$6),-2) -> 1000
A13: Precio de Venta | C13: =Variables!D15 -> 20000 | D13: =Variables!E15 -> 20000 | E13: =Variables!F15 -> 20000 | F13: =Variables!G15 -> 20000 | G13: =Variables!H15 -> 20000 | H13: =Variables!I15 -> 20000 | I13: =Variables!J15 -> 20000 | J13: =Variables!K15 -> 20000 | K13: =Variables!L15 -> 20000 | L13: =Variables!M15 -> 20000
A14: Subtotal ingresos por ventas 1 | C14: =+C12*C13 -> 14000000 | D14: 14000000 | E14: 14000000 | F14: 14000000 | G14: 16000000 | H14: 16000000 | I14: 18000000 | J14: =+J12*J13 -> 18000000 | K14: 20000000 | L14: 20000000
A15: 2. ACTIVIDADES EDUCATIVAS
A16: Unidades vendidas | C16: =ROUND((C10*Variables!$B$7),-1) -> 70 | D16: =ROUND((D10*Variables!$B$7),-1) -> 70 | E16: =ROUND((E10*Variables!$B$7),-1) -> 70 | F16: =ROUND((F10*Variables!$B$7),-1) -> 70 | G16: =ROUND((G10*Variables!$B$7),-1) -> 80 | H16: =ROUND((H10*Variables!$B$7),-1) -> 80 | I16: =ROUND((I10*Variables!$B$7),-1) -> 90 | J16: =ROUND((J10*Variables!$B$7),-1) -> 90 | K16: =ROUND((K10*Variables!$B$7),-1) -> 100 | L16: =ROUND((L10*Variables!$B$7),-1) -> 100
A17: Precio de Venta | C17: =Variables!D16 -> 200000 | D17: =Variables!E16 -> 200000 | E17: =Variables!F16 -> 200000 | F17: =Variables!G16 -> 200000 | G17: =Variables!H16 -> 200000 | H17: =Variables!I16 -> 200000 | I17: =Variables!J16 -> 200000 | J17: =Variables!K16 -> 200000 | K17: =Variables!L16 -> 200000 | L17: =Variables!M16 -> 200000
A18: Subtotal ingresos por ventas 2 | C18: =+C16*C17 -> 14000000 | D18: 14000000 | E18: 14000000 | F18: 14000000 | G18: 16000000 | H18: 16000000 | I18: 18000000 | J18: =+J16*J17 -> 18000000 | K18: 20000000 | L18: 20000000
A19: 3. SEMINARIOS POR PATICIPANTE
A20: Unidades vendidas | C20: =ROUND((C10*Variables!$B$8),-2) -> 700 | D20: =ROUND((D10*Variables!$B$8),-2) -> 700 | E20: =ROUND((E10*Variables!$B$8),-2) -> 700 | F20: =ROUND((F10*Variables!$B$8),-2) -> 700 | G20: =ROUND((G10*Variables!$B$8),-2) -> 800 | H20: =ROUND((H10*Variables!$B$8),-2) -> 800 | I20: =ROUND((I10*Variables!$B$8),-2) -> 900 | J20: =ROUND((J10*Variables!$B$8),-2) -> 900 | K20: =ROUND((K10*Variables!$B$8),-2) -> 1000 | L20: =ROUND((L10*Variables!$B$8),-2) -> 1000
A21: Precio de Venta | C21: =Variables!D17 -> 30000 | D21: =Variables!E17 -> 30000 | E21: =Variables!F17 -> 30000 | F21: =Variables!G17 -> 30000 | G21: =Variables!H17 -> 30000 | H21: =Variables!I17 -> 30000 | I21: =Variables!J17 -> 30000 | J21: =Variables!K17 -> 30000 | K21: =Variables!L17 -> 30000 | L21: =Variables!M17 -> 30000
A22: Subtotal ingresos por ventas 3 | C22: =+C20*C21 -> 21000000 | D22: =+D20*D21 -> 21000000 | E22: 21000000 | F22: 21000000 | G22: 24000000 | H22: 24000000 | I22: 27000000 | J22: =+J20*J21 -> 27000000 | K22: 30000000 | L22: 30000000
A23: 4. ASESORÍAS TÉCNICAS
A24: Unidades vendidas | C24: =ROUND((C10*Variables!$B$9),-1) -> 160 | D24: =ROUND((D10*Variables!$B$9),-1) -> 170 | E24: =ROUND((E10*Variables!$B$9),-1) -> 180 | F24: =ROUND((F10*Variables!$B$9),-1) -> 180 | G24: =ROUND((G10*Variables!$B$9),-1) -> 190 | H24: =ROUND((H10*Variables!$B$9),-1) -> 200 | I24: =ROUND((I10*Variables!$B$9),-1) -> 220 | J24: =ROUND((J10*Variables!$B$9),-1) -> 230 | K24: =ROUND((K10*Variables!$B$9),-1) -> 240 | L24: =ROUND((L10*Variables!$B$9),-1) -> 250
A25: Precio de Venta | C25: =Variables!D18 -> 450000 | D25: =Variables!E18 -> 450000 | E25: =Variables!F18 -> 450000 | F25: =Variables!G18 -> 450000 | G25: =Variables!H18 -> 450000 | H25: =Variables!I18 -> 450000 | I25: =Variables!J18 -> 450000 | J25: =Variables!K18 -> 450000 | K25: =Variables!L18 -> 450000 | L25: =Variables!M18 -> 450000
A26: Subtotal ingresos por ventas 4 | C26: =+C24*C25 -> 72000000 | D26: =+D24*D25 -> 76500000 | E26: 81000000 | F26: 81000000 | G26: 85500000 | H26: 90000000 | I26: 99000000 | J26: =+J24*J25 -> 103500000 | K26: 108000000 | L26: 112500000
A27: 5. CURSOS INDIVIDUALES (ADOLESCENTES Y JÓVENES)
A28: Unidades vendidas | C28: =ROUND((C10*Variables!$B$10),-2) -> 2000 | D28: =ROUND((D10*Variables!$B$10),-2) -> 2100 | E28: =ROUND((E10*Variables!$B$10),-2) -> 2200 | F28: =ROUND((F10*Variables!$B$10),-2) -> 2300 | G28: =ROUND((G10*Variables!$B$10),-2) -> 2400 | H28: =ROUND((H10*Variables!$B$10),-2) -> 2600 | I28: =ROUND((I10*Variables!$B$10),-2) -> 2700 | J28: =ROUND((J10*Variables!$B$10),-2) -> 2800 | K28: =ROUND((K10*Variables!$B$10),-2) -> 3000 | L28: =ROUND((L10*Variables!$B$10),-2) -> 3200
A29: Precio de Venta | C29: =Variables!D19 -> 12000 | D29: =Variables!E19 -> 12000 | E29: =Variables!F19 -> 12000 | F29: =Variables!G19 -> 12000 | G29: =Variables!H19 -> 12000 | H29: =Variables!I19 -> 12000 | I29: =Variables!J19 -> 12000 | J29: =Variables!K19 -> 12000 | K29: =Variables!L19 -> 12000 | L29: =Variables!M19 -> 12000
A30: Subtotal ingresos por ventas 5 | C30: =+C28*C29 -> 24000000 | D30: =+D28*D29 -> 25200000 | E30: 26400000 | F30: 27600000 | G30: 28800000 | H30: 31200000 | I30: 32400000 | J30: =+J28*J29 -> 33600000 | K30: 36000000 | L30: 38400000
A31: 6. CURSOS INDIVIDUALES (PADRES Y MADRES)
A32: Unidades vendidas | C32: =ROUND((C10*Variables!$B$11),-2) -> 700 | D32: =ROUND((D10*Variables!$B$11),-2) -> 800 | E32: =ROUND((E10*Variables!$B$11),-2) -> 800 | F32: =ROUND((F10*Variables!$B$11),-2) -> 800 | G32: =ROUND((G10*Variables!$B$11),-2) -> 900 | H32: =ROUND((H10*Variables!$B$11),-2) -> 900 | I32: =ROUND((I10*Variables!$B$11),-2) -> 1000 | J32: =ROUND((J10*Variables!$B$11),-2) -> 1000 | K32: =ROUND((K10*Variables!$B$11),-2) -> 1100 | L32: =ROUND((L10*Variables!$B$11),-2) -> 1200
A33: Precio de Venta | C33: =Variables!D20 -> 15000 | D33: =Variables!E20 -> 15000 | E33: =Variables!F20 -> 15000 | F33: =Variables!G20 -> 15000 | G33: =Variables!H20 -> 15000 | H33: =Variables!I20 -> 15000 | I33: =Variables!J20 -> 15000 | J33: =Variables!K20 -> 15000 | K33: =Variables!L20 -> 15000 | L33: =Variables!M20 -> 15000
A34: Subtotal ingresos por ventas 6 | C34: =+C32*C33 -> 10500000 | D34: =+D32*D33 -> 12000000 | E34: 12000000 | F34: 12000000 | G34: 13500000 | H34: 13500000 | I34: 15000000 | J34: =+J32*J33 -> 15000000 | K34: 16500000 | L34: 18000000
A35: 7. CURSOS INDIVIDUALES (DOCENTES Y PROFESIONALES)
A36: Unidades vendidas | C36: =ROUND((C10*Variables!$B$12),-2) -> 700 | D36: =ROUND((D10*Variables!$B$12),-2) -> 800 | E36: =ROUND((E10*Variables!$B$12),-2) -> 800 | F36: =ROUND((F10*Variables!$B$12),-2) -> 800 | G36: =ROUND((G10*Variables!$B$12),-2) -> 900 | H36: =ROUND((H10*Variables!$B$12),-2) -> 900 | I36: =ROUND((I10*Variables!$B$12),-2) -> 1000 | J36: =ROUND((J10*Variables!$B$12),-2) -> 1000 | K36: =ROUND((K10*Variables!$B$12),-2) -> 1100 | L36: =ROUND((L10*Variables!$B$12),-2) -> 1200
A37: Precio de Venta | C37: =Variables!D21 -> 25000 | D37: =Variables!E21 -> 25000 | E37: =Variables!F21 -> 25000 | F37: =Variables!G21 -> 25000 | G37: =Variables!H21 -> 25000 | H37: =Variables!I21 -> 25000 | I37: =Variables!J21 -> 25000 | J37: =Variables!K21 -> 25000 | K37: =Variables!L21 -> 25000 | L37: =Variables!M21 -> 25000
A38: Subtotal ingresos por ventas 7 | C38: =+C36*C37 -> 17500000 | D38: =+D36*D37 -> 20000000 | E38: 20000000 | F38: 20000000 | G38: 22500000 | H38: 22500000 | I38: 25000000 | J38: =+J36*J37 -> 25000000 | K38: 27500000 | L38: 30000000
A40: TOTAL UNIDADES DE PRODUCCIÓN | C40: =+C12+C16+C36+C20+C24+C28+C32 -> 5030 | D40: =+D12+D16+D36+D20+D24+D28+D32 -> 5340 | E40: 5450 | F40: 5550 | G40: 6070 | H40: 6280 | I40: 6810 | J40: =+J12+J16+J36+J20+J24+J28+J32 -> 6920 | K40: 7540 | L40: 7950
A41: TOTAL INGRESOS POR VENTAS | C41: =+C14+C18+C38+C22+C26+C30+C34 -> 173000000 | D41: =+D14+D18+D38+D22+D26+D30+D34 -> 182700000 | E41: 188400000 | F41: 189600000 | G41: 206300000 | H41: 213200000 | I41: 234400000 | J41: =+J14+J18+J38+J22+J26+J30+J34 -> 240100000 | K41: 258000000 | L41: 268900000
A42: TOTAL PRECIO PROMEDIO | C42: =ROUND((C41/C40),0) -> 34394 | D42: =ROUND((D41/D40),0) -> 34213 | E42: 34569 | F42: 34162 | G42: 33987 | H42: 33949 | I42: 34420 | J42: =ROUND((J41/J40),0) -> 34697 | K42: 34218 | L42: 33824
A45: Cuadro 12,10
A46: DEPRECIACIÓN DE INVERSIONES FIJAS
A47: (Millones del año 2014)
A49: Fase | B49: Inversión | D49: Operacional
M50: VALOR EN
A51: Año | B51: =+B8 -> 2014 | C51: 2015 | D51: 2016 | E51: 2017 | F51: 2018 | G51: 2019 | H51: 2020 | I51: 2021 | J51: 2022 | K51: 2023 | L51: 2024 | M51: LIBROS
M52: EN EL
A53: Nivel de Producción | B53: =+B10 -> 0 | C53: 0.65 | D53: 0.67 | E53: 0.7 | F53: 0.72 | G53: 0.77 | H53: 0.81 | I53: 0.86 | J53: 0.9 | K53: 0.95 | L53: 1 | M53: AÑO 11
A55: Edificios | C55: =IF(Variables!$B27=0,0,Variables!$C26/Variables!$B27) -> 0 | D55: =IF(Variables!$B27=0,0,Variables!$C26/Variables!$B27) -> 0 | E55: =IF(Variables!$B27=0,0,Variables!$C26/Variables!$B27) -> 0 | F55: =IF(Variables!$B27=0,0,Variables!$C26/Variables!$B27) -> 0 | G55: =IF(Variables!$B27=0,0,Variables!$C26/Variables!$B27) -> 0 | H55: =IF(Variables!$B27=0,0,Variables!$C26/Variables!$B27) -> 0 | I55: =IF(Variables!$B27=0,0,Variables!$C26/Variables!$B27) -> 0 | J55: =IF(Variables!$B27=0,0,Variables!$C26/Variables!$B27) -> 0 | K55: =IF(Variables!$B27=0,0,Variables!$C26/Variables!$B27) -> 0 | L55: =IF(Variables!$B27=0,0,Variables!$C26/Variables!$B27) -> 0
C56: =IF(Variables!$B28=0,0,Variables!$C27/Variables!$B28) -> 0 | D56: =IF(Variables!$B28=0,0,Variables!$C27/Variables!$B28) -> 0 | E56: =IF(Variables!$B28=0,0,Variables!$C27/Variables!$B28) -> 0 | F56: =IF(Variables!$B28=0,0,Variables!$C27/Variables!$B28) -> 0 | G56: =IF(Variables!$B28=0,0,Variables!$C27/Variables!$B28) -> 0 | H56: =IF(Variables!$B28=0,0,Variables!$C27/Variables!$B28) -> 0 | I56: =IF(Variables!$B28=0,0,Variables!$C27/Variables!$B28) -> 0 | J56: =IF(Variables!$B28=0,0,Variables!$C27/Variables!$B28) -> 0 | K56: =IF(Variables!$B28=0,0,Variables!$C27/Variables!$B28) -> 0 | L56: =IF(Variables!$B28=0,0,Variables!$C27/Variables!$B28) -> 0
A57: Maquinaria y Equipos | C57: =IF(Variables!$B29=0,0,Variables!$C28/Variables!$B29) -> 35000 | D57: =IF(Variables!$B29=0,0,Variables!$C28/Variables!$B29) -> 35000 | E57: =IF(Variables!$B29=0,0,Variables!$C28/Variables!$B29) -> 35000 | F57: =IF(Variables!$B29=0,0,Variables!$C28/Variables!$B29) -> 35000 | G57: =IF(Variables!$B29=0,0,Variables!$C28/Variables!$B29) -> 35000 | H57: =IF(Variables!$B29=0,0,Variables!$C28/Variables!$B29) -> 35000 | I57: =IF(Variables!$B29=0,0,Variables!$C28/Variables!$B29) -> 35000 | J57: =IF(Variables!$B29=0,0,Variables!$C28/Variables!$B29) -> 35000 | K57: =IF(Variables!$B29=0,0,Variables!$C28/Variables!$B29) -> 35000 | L57: =IF(Variables!$B29=0,0,Variables!$C28/Variables!$B29) -> 35000 | M57: =Variables!C28-SUM(C57:L57) -> 0
C58: =IF(Variables!$B30=0,0,Variables!$C29/Variables!$B30) -> 0 | D58: =IF(Variables!$B30=0,0,Variables!$C29/Variables!$B30) -> 0 | E58: =IF(Variables!$B30=0,0,Variables!$C29/Variables!$B30) -> 0 | F58: =IF(Variables!$B30=0,0,Variables!$C29/Variables!$B30) -> 0 | G58: =IF(Variables!$B30=0,0,Variables!$C29/Variables!$B30) -> 0 | H58: =IF(Variables!$B30=0,0,Variables!$C29/Variables!$B30) -> 0 | I58: =IF(Variables!$B30=0,0,Variables!$C29/Variables!$B30) -> 0 | J58: =IF(Variables!$B30=0,0,Variables!$C29/Variables!$B30) -> 0 | K58: =IF(Variables!$B30=0,0,Variables!$C29/Variables!$B30) -> 0 | L58: =IF(Variables!$B30=0,0,Variables!$C29/Variables!$B30) -> 0
A59: Vehículos | C59: =IF(Variables!$B31=0,0,Variables!$C30/Variables!$B31) -> 0 | D59: =IF(Variables!$B31=0,0,Variables!$C30/Variables!$B31) -> 0 | E59: =IF(Variables!$B31=0,0,Variables!$C30/Variables!$B31) -> 0 | F59: =IF(Variables!$B31=0,0,Variables!$C30/Variables!$B31) -> 0 | G59: =IF(Variables!$B31=0,0,Variables!$C30/Variables!$B31) -> 0 | H59: =IF(Variables!$B31=0,0,Variables!$C30/Variables!$B31) -> 0 | I59: =IF(Variables!$B31=0,0,Variables!$C30/Variables!$B31) -> 0 | J59: =IF(Variables!$B31=0,0,Variables!$C30/Variables!$B31) -> 0 | K59: =IF(Variables!$B31=0,0,Variables!$C30/Variables!$B31) -> 0 | L59: =IF(Variables!$B31=0,0,Variables!$C30/Variables!$B31) -> 0
C60: =IF(Variables!$B32=0,0,Variables!$C31/Variables!$B32) -> 0 | D60: =IF(Variables!$B32=0,0,Variables!$C31/Variables!$B32) -> 0 | E60: =IF(Variables!$B32=0,0,Variables!$C31/Variables!$B32) -> 0 | F60: =IF(Variables!$B32=0,0,Variables!$C31/Variables!$B32) -> 0 | G60: =IF(Variables!$B32=0,0,Variables!$C31/Variables!$B32) -> 0 | H60: =IF(Variables!$B32=0,0,Variables!$C31/Variables!$B32) -> 0 | I60: =IF(Variables!$B32=0,0,Variables!$C31/Variables!$B32) -> 0 | J60: =IF(Variables!$B32=0,0,Variables!$C31/Variables!$B32) -> 0 | K60: =IF(Variables!$B32=0,0,Variables!$C31/Variables!$B32) -> 0 | L60: =IF(Variables!$B32=0,0,Variables!$C31/Variables!$B32) -> 0
A61: Muebles y enseres | C61: =IF(Variables!$B33=0,0,Variables!$C32/Variables!$B33) -> 3396600 | D61: =IF(Variables!$B33=0,0,Variables!$C32/Variables!$B33) -> 3396600 | E61: =IF(Variables!$B33=0,0,Variables!$C32/Variables!$B33) -> 3396600 | F61: =IF(Variables!$B33=0,0,Variables!$C32/Variables!$B33) -> 3396600 | G61: =IF(Variables!$B33=0,0,Variables!$C32/Variables!$B33) -> 3396600 | H61: =IF(Variables!$B33=0,0,Variables!$C32/Variables!$B33) -> 3396600 | I61: 0 | J61: 0 | K61: 0 | L61: 0 | M61: =Variables!C32-SUM(C61:L61) -> -3396600
C62: =IF(Variables!$B34=0,0,Variables!$C33/Variables!$B34) -> 0 | D62: =IF(Variables!$B34=0,0,Variables!$C33/Variables!$B34) -> 0 | E62: =IF(Variables!$B34=0,0,Variables!$C33/Variables!$B34) -> 0 | F62: =IF(Variables!$B34=0,0,Variables!$C33/Variables!$B34) -> 0 | G62: =IF(Variables!$B34=0,0,Variables!$C33/Variables!$B34) -> 0 | H62: =IF(Variables!$B34=0,0,Variables!$C33/Variables!$B34) -> 0 | I62: =IF(Variables!$B34=0,0,Variables!$C33/Variables!$B34) -> 0 | J62: =IF(Variables!$B34=0,0,Variables!$C33/Variables!$B34) -> 0 | K62: =IF(Variables!$B34=0,0,Variables!$C33/Variables!$B34) -> 0 | L62: =IF(Variables!$B34=0,0,Variables!$C33/Variables!$B34) -> 0
A63: Herramientas | B63: =IF(Variables!$B35=0,0,Variables!$C34/Variables!$B35) -> 0 | C63: =IF(Variables!$B35=0,0,Variables!$C34/Variables!$B35) -> 0 | D63: =IF(Variables!$B35=0,0,Variables!$C34/Variables!$B35) -> 0 | E63: =IF(Variables!$B35=0,0,Variables!$C34/Variables!$B35) -> 0 | F63: =IF(Variables!$B35=0,0,Variables!$C34/Variables!$B35) -> 0 | G63: =IF(Variables!$B35=0,0,Variables!$C34/Variables!$B35) -> 0 | H63: =IF(Variables!$B35=0,0,Variables!$C34/Variables!$B35) -> 0 | I63: =IF(Variables!$B35=0,0,Variables!$C34/Variables!$B35) -> 0 | J63: =IF(Variables!$B35=0,0,Variables!$C34/Variables!$B35) -> 0 | K63: =IF(Variables!$B35=0,0,Variables!$C34/Variables!$B35) -> 0 | L63: =IF(Variables!$B35=0,0,Variables!$C34/Variables!$B35) -> 0
A65: Total Depreciación | B65: =SUM(B55:B63) -> 0 | C65: =SUM(C55:C63) -> 3431600 | D65: 3431600 | E65: 3431600 | F65: 3431600 | G65: 3431600 | H65: 3431600 | I65: 35000 | J65: =SUM(J55:J63) -> 35000 | K65: 35000 | L65: 35000 | M65: =SUM(M55:M63) -> -3396600
A69: Cuadro 12,11
A70: AMORTIZACIÓN DE DIFERIDOS
A71: (Millones del año 2014)
A73: Fase | B73: Inversión | D73: Operacional
A75: Año | B75: =+B51 -> 2014 | C75: =+C51 -> 2015 | D75: 2016 | E75: 2017 | F75: 2018 | G75: 2019 | H75: 2020 | I75: 2021 | J75: =+J51 -> 2022 | K75: 2023 | L75: 2024
A77: Nivel de Producción | B77: =+B53 -> 0 | C77: 0.65 | D77: 0.67 | E77: 0.7 | F77: 0.72 | G77: 0.77 | H77: 0.81 | I77: 0.86 | J77: =+J53 -> 0.9 | K77: 0.95 | L77: 1
A79: Amortización de Diferidos | C79: =Variables!$C$38/Variables!$B$38 -> 1122000 | D79: =Variables!$C$38/Variables!$B$38 -> 1122000 | E79: =Variables!$C$38/Variables!$B$38 -> 1122000 | F79: =Variables!$C$38/Variables!$B$38 -> 1122000 | G79: =Variables!$C$38/Variables!$B$38 -> 1122000
A83: Cuadro 12,12
A84: COSTOS DE FINANCIACIÓN Y PAGO PRESTAMOS
A85: (Millones del año 2014)
A87: Fase | B87: Inversión | D87: Operacional
A89: Año | B89: =+B$51 -> 2014 | C89: =+C$51 -> 2015 | D89: 2016 | E89: 2017 | F89: 2018 | G89: 2019 | H89: 2020 | I89: 2021 | J89: 2022 | K89: 2023 | L89: 2024
A91: Nivel de Producción | B91: =+B$53 -> 0 | C91: 0.65 | D91: 0.67 | E91: 0.7 | F91: 0.72 | G91: 0.77 | H91: 0.81 | I91: 0.86 | J91: 0.9 | K91: 0.95 | L91: 1
A93: Cuota fija | C93: =PMT(Variables!$B$53,Variables!$B$54,-Variables!$C$49) -> 3310741.602 | D93: =PMT(Variables!$B$53,Variables!$B$54,-Variables!$C$49) -> 3310741.602 | E93: =PMT(Variables!$B$53,Variables!$B$54,-Variables!$C$49) -> 3310741.602 | F93: =PMT(Variables!$B$53,Variables!$B$54,-Variables!$C$49) -> 3310741.602 | G93: =PMT(Variables!$B$53,Variables!$B$54,-Variables!$C$49) -> 3310741.602 | H93: =PMT(Variables!$B$53,Variables!$B$54,-Variables!$C$49) -> 3310741.602
A95: Costos de Financiación e Intereses | C95: =B99*Variables!$B$53 -> 2400000 | D95: =C99*Variables!$B$53 -> 2181422.016 | E95: =D99*Variables!$B$53 -> 1910385.315 | F95: =E99*Variables!$B$53 -> 1574299.806 | G95: =F99*Variables!$B$53 -> 1157553.775 | H95: =G99*Variables!$B$53 -> 640788.6971
A97: Pago de Prestamos | C97: =C93-C95 -> 910741.6016 | D97: 1129319.586 | E97: 1400356.287 | F97: 1736441.795 | G97: 2153187.826 | H97: 2669952.904
A99: Saldo de la deuda | B99: =Variables!C49 -> 10000000 | C99: =+B99-C97 -> 9089258.398 | D99: 7959938.813 | E99: 6559582.526 | F99: 4823140.731 | G99: 2669952.904 | H99: 0
A103: Cuadro 12,13
A104: COSTOS DE MATERIA PRIMA DE LAS UNIDADES VENDIDAS
A105: (Millones del año 2014)
A107: Fase | B107: Inversión | D107: Operacional
A109: Año | B109: =+B$51 -> 2014 | C109: =+C$51 -> 2015 | D109: 2016 | E109: 2017 | F109: 2018 | G109: 2019 | H109: 2020 | I109: 2021 | J109: 2022 | K109: 2023 | L109: 2024
A111: Nivel de Producción | B111: =+B$53 -> 0 | C111: 0.65 | D111: 0.67 | E111: 0.7 | F111: 0.72 | G111: 0.77 | H111: 0.81 | I111: 0.86 | J111: 0.9 | K111: 0.95 | L111: 1
A113: Unidades Producidas (Miles) | C113: =C40 -> 5030 | D113: 5340 | E113: 5450 | F113: 5550 | G113: 6070 | H113: 6280 | I113: 6810 | J113: 6920 | K113: 7540 | L113: 7950
A115: Costos Unitario (Unidades Monetarias) | C115: =C118/C113 -> 13359.84095 | D115: 13213.48315 | E115: 13594.12844 | F115: 14016.64865 | G115: 13456.67545 | H115: 13657.02564 | I115: 13223.85126 | J115: =J118/J113 -> 13664.3278 | K115: 13167.77266 | L115: 13113.11398
A118: Total Costos Materia Prima (Millones) | C118: ='Ppto MP'!F39 -> 67200000 | D118: ='Ppto MP'!I39 -> 70560000 | E118: ='Ppto MP'!L39 -> 74088000 | F118: ='Ppto MP'!O39 -> 77792400 | G118: ='Ppto MP'!R39 -> 81682020 | H118: ='Ppto MP'!U39 -> 85766121 | I118: ='Ppto MP'!X39 -> 90054427.05 | J118: ='Ppto MP'!AA39 -> 94557148.4 | K118: ='Ppto MP'!AD39 -> 99285005.82 | L118: ='Ppto MP'!AG39 -> 104249256.1
A122: Cuadro 9.1
A123: COSTO DE LA MANO DE OBRA DE LAS UNIDADES VENDIDAS
A124: (Millones del año 2014)
A126: Fase | B126: Inversión | D126: Operacional
A128: Año | B128: =+B$51 -> 2014 | C128: =+C$51 -> 2015 | D128: 2016 | E128: 2017 | F128: 2018 | G128: 2019 | H128: 2020 | I128: 2021 | J128: 2022 | K128: 2023 | L128: 2024
A130: Nivel de Producción | B130: =+B$53 -> 0 | C130: =+C$53 -> 0.65 | D130: =+D$53 -> 0.67 | E130: 0.7 | F130: 0.72 | G130: 0.77 | H130: 0.81 | I130: 0.86 | J130: 0.9 | K130: 0.95 | L130: 1
A132: Unidades Producidas (Miles) | C132: =C113 -> 5030 | D132: 5340 | E132: 5450 | F132: 5550 | G132: 6070 | H132: 6280 | I132: 6810 | J132: =J113 -> 6920 | K132: 7540 | L132: 7950
A134: Costos Unitario (Unidades Monetarias) | C134: =C137/C132 -> 6400.268946 | D134: 6028.717753 | E134: 5907.037211 | F134: 5800.604108 | G134: 5303.682504 | H134: 5126.330064 | I134: 4727.364581 | J134: =J137/J132 -> 4652.218613 | K134: 4269.675438 | L134: 4049.47834
A137: Total Costos Mano de Obra (Millones) | C137: =Inversiones!$N$94 -> 32193352.8 | D137: =Inversiones!$N$94 -> 32193352.8 | E137: =Inversiones!$N$94 -> 32193352.8 | F137: =Inversiones!$N$94 -> 32193352.8 | G137: =Inversiones!$N$94 -> 32193352.8 | H137: =Inversiones!$N$94 -> 32193352.8 | I137: =Inversiones!$N$94 -> 32193352.8 | J137: =Inversiones!$N$94 -> 32193352.8 | K137: =Inversiones!$N$94 -> 32193352.8 | L137: =Inversiones!$N$94 -> 32193352.8
A141: Cuadro 12,15
A142: GASTOS GENERALES DE FABRICACIÓN DE LAS UNIDADES VENDIDAS
A143: (Millones del año 2014)
A145: Fase | B145: Inversión | D145: Operacional
A147: Año | B147: =+B$51 -> 2014 | C147: =+C$51 -> 2015 | D147: 2016 | E147: 2017 | F147: 2018 | G147: 2019 | H147: 2020 | I147: 2021 | J147: 2022 | K147: 2023 | L147: 2024
A149: Nivel de Producción | B149: =+B$53 -> 0 | C149: =+C$53 -> 0.65 | D149: =+D$53 -> 0.67 | E149: 0.7 | F149: 0.72 | G149: 0.77 | H149: 0.81 | I149: 0.86 | J149: 0.9 | K149: 0.95 | L149: 1
A151: Unidades Producidas (Miles) | C151: =C132 -> 5030 | D151: =D132 -> 5340 | E151: =E132 -> 5450 | F151: =F132 -> 5550 | G151: =G132 -> 6070 | H151: =H132 -> 6280 | I151: 6810 | J151: 6920 | K151: 7540 | L151: 7950
A153: Costos Unitario (Unidades Monetarias) | C153: =C156/C151 -> 0 | D153: =D156/D151 -> 0 | E153: =E156/E151 -> 0 | F153: =F156/F151 -> 0 | G153: =G156/G151 -> 0 | H153: =H156/H151 -> 0 | I153: 0 | J153: 0 | K153: 0 | L153: 0
A156: Total Gasto generales de fabricacion (Millones) | C156: =Inversiones!B200 -> 0 | D156: =Inversiones!C200 -> 0 | E156: =Inversiones!D200 -> 0 | F156: =Inversiones!E200 -> 0 | G156: =Inversiones!F200 -> 0 | H156: =Inversiones!G200 -> 0 | I156: =Inversiones!H200 -> 0 | J156: =Inversiones!I200 -> 0 | K156: =Inversiones!J200 -> 0 | L156: =Inversiones!K200 -> 0
A161: Cuadro 9.2
A162: COSTOS DE OPERACIÓN Y FINANCIACIÓN
A163: (Millones del año 2014)
A165: Fase | B165: Inversión | D165: Operacional
A167: Año | B167: =+B$51 -> 2014 | C167: =+C$51 -> 2015 | D167: 2016 | E167: 2017 | F167: 2018 | G167: 2019 | H167: 2020 | I167: 2021 | J167: 2022 | K167: 2023 | L167: 2024
A169: Nivel de Producción | B169: =+B$53 -> 0 | C169: =+C$53 -> 0.65 | D169: =+D$53 -> 0.67 | E169: 0.7 | F169: 0.72 | G169: 0.77 | H169: 0.81 | I169: 0.86 | J169: 0.9 | K169: 0.95 | L169: 1
A171: Materiales e Insumos | C171: =C118 -> 67200000 | D171: 70560000 | E171: 74088000 | F171: 77792400 | G171: 81682020 | H171: 85766121 | I171: 90054427.05 | J171: =J118 -> 94557148.4 | K171: 99285005.82 | L171: 104249256.1
A173: Mano de Obra Directa | C173: =C137 -> 32193352.8 | D173: 32193352.8 | E173: 32193352.8 | F173: 32193352.8 | G173: 32193352.8 | H173: 32193352.8 | I173: 32193352.8 | J173: =J137 -> 32193352.8 | K173: 32193352.8 | L173: 32193352.8
A175: Gastos Generales de Fabricación | C175: =C156 -> 0 | D175: 0 | E175: 0 | F175: 0 | G175: 0 | H175: 0 | I175: 0 | J175: =J156 -> 0 | K175: 0 | L175: 0
A177: Depreciación | C177: =C65 -> 3431600 | D177: 3431600 | E177: 3431600 | F177: 3431600 | G177: 3431600 | H177: 3431600 | I177: 35000 | J177: =J65 -> 35000 | K177: 35000 | L177: 35000
A180: 1. COSTOS DE VENTAS | C180: =SUM(C171:C177) -> 102824952.8 | D180: =SUM(D171:D177) -> 106184952.8 | E180: =SUM(E171:E177) -> 109712952.8 | F180: 113417352.8 | G180: 117306972.8 | H180: 121391073.8 | I180: 122282779.9 | J180: =SUM(J171:J177) -> 126785501.2 | K180: 131513358.6 | L180: 136477608.9
A183: Gastos Generales de Administración | C183: =Inversiones!B184 -> 49703352.8 | D183: =Inversiones!C184 -> 49703352.8 | E183: =Inversiones!D184 -> 49703352.8 | F183: =Inversiones!E184 -> 49703352.8 | G183: =Inversiones!F184 -> 49703352.8 | H183: =Inversiones!G184 -> 49703353.8 | I183: =Inversiones!H184 -> 49703354.8 | J183: =Inversiones!I184 -> 49703354.8 | K183: =Inversiones!J184 -> 49703354.8 | L183: =Inversiones!K184 -> 49703354.8
A185: Gastos Generales de Ventas | C185: =Inversiones!B190 -> 6520000 | D185: =Inversiones!C190 -> 6520000 | E185: =Inversiones!D190 -> 6520000 | F185: =Inversiones!E190 -> 6520000 | G185: =Inversiones!F190 -> 6520000 | H185: =Inversiones!G190 -> 6520000 | I185: =Inversiones!H190 -> 6520000 | J185: =Inversiones!I190 -> 6520000 | K185: =Inversiones!J190 -> 6520000 | L185: =Inversiones!K190 -> 6520000
A187: Gastos Generales de Distribución | C187: =Inversiones!B192 -> 4800000 | D187: =Inversiones!C192 -> 4800000 | E187: =Inversiones!D192 -> 4800000 | F187: =Inversiones!E192 -> 4800000 | G187: =Inversiones!F192 -> 4800000 | H187: =Inversiones!G192 -> 4800000 | I187: =Inversiones!H192 -> 4800000 | J187: =Inversiones!I192 -> 4800000 | K187: =Inversiones!J192 -> 4800000 | L187: =Inversiones!K192 -> 4800000
A189: Amortización de Diferidos | C189: =C79 -> 1122000 | D189: 1122000 | E189: 1122000 | F189: 1122000 | G189: 1122000 | H189: 0 | I189: 0 | J189: 0 | K189: 0 | L189: 0
A192: 2. GASTOS OPERATIVOS | C192: =SUM(C183:C189) -> 62145352.8 | D192: =SUM(D183:D189) -> 62145352.8 | E192: 62145352.8 | F192: 62145352.8 | G192: 62145352.8 | H192: 61023353.8 | I192: 61023354.8 | J192: =SUM(J183:J189) -> 61023354.8 | K192: 61023354.8 | L192: 61023354.8
A195: COSTOS DE OPERACIÓN (1+2) | C195: =+C180+C192 -> 164970305.6 | D195: 168330305.6 | E195: 171858305.6 | F195: 175562705.6 | G195: 179452325.6 | H195: 182414427.6 | I195: 183306134.7 | J195: =+J180+J192 -> 187808856 | K195: 192536713.4 | L195: 197500963.7
A197: COSTOS DE FINANCIACIÓN (Intereses) | C197: =C95 -> 2400000 | D197: 2181422.016 | E197: 1910385.315 | F197: 1574299.806 | G197: 1157553.775 | H197: 640788.6971 | I197: 0 | J197: =J95 -> 0 | K197: 0 | L197: 0
A200: TOTAL COSTOS DE OPERACIÓN
A201: Y FINANCIACIÓN | C201: =+C195+C197 -> 167370305.6 | D201: =+D195+D197 -> 170511727.6 | E201: 173768690.9 | F201: 177137005.4 | G201: 180609879.4 | H201: 183055216.3 | I201: 183306134.7 | J201: =+J195+J197 -> 187808856 | K201: 192536713.4 | L201: 197500963.7
A205: Cuadro 8.1
A206: CAPITAL DE TRABAJO - SALDO DE EFECTIVO REQUERIDO EN CAJA
A207: (Millones del año 2014)
B208: Días de | C208: Coeficiente de
B209: Cobertura | C209: Renovación | D209: Año
D211: =+B$51 -> 2014 | E211: 2015 | F211: 2016 | G211: 2017 | H211: 2018 | I211: 2019 | J211: 2020 | K211: 2021 | L211: =+J$51 -> 2022 | M211: =+K$51 -> 2023 | N211: =+L$51 -> 2024
A214: Materiales e Insumos | B214: =Variables!B58 -> 10 | C214: =IF(B214=0,0,(360/B214)) -> 36 | E214: =IF($C$214=0,0,C$171/$C$214) -> 1866666.667 | F214: 1960000 | G214: 2058000 | H214: 2160900 | I214: 2268945 | J214: 2382392.25 | K214: 2501511.863 | L214: =IF($C$214=0,0,J$171/$C$214) -> 2626587.456 | M214: =IF($C$214=0,0,K$171/$C$214) -> 2757916.828 | N214: =IF($C$214=0,0,L$171/$C$214) -> 2895812.67
A216: Mano de Obra Directa | B216: =+Variables!B59 -> 10 | C216: =IF(B216=0,0,(360/B216)) -> 36 | E216: =IF($C$216=0,0,C$173/$C$216) -> 894259.8 | F216: 894259.8 | G216: 894259.8 | H216: 894259.8 | I216: 894259.8 | J216: 894259.8 | K216: 894259.8 | L216: =IF($C$216=0,0,J$173/$C$216) -> 894259.8 | M216: =IF($C$216=0,0,K$173/$C$216) -> 894259.8 | N216: =IF($C$216=0,0,L$173/$C$216) -> 894259.8
A218: Gastos Generales de Fabricación | B218: =+Variables!B60 -> 10 | C218: =IF(B218=0,0,(360/B218)) -> 36 | E218: =IF($C$218=0,0,C$175/$C$218) -> 0 | F218: 0 | G218: 0 | H218: 0 | I218: 0 | J218: 0 | K218: 0 | L218: =IF($C$218=0,0,J$175/$C$218) -> 0 | M218: =IF($C$218=0,0,K$175/$C$218) -> 0 | N218: =IF($C$218=0,0,L$175/$C$218) -> 0
A220: Gastos Generales de Administración | B220: =+Variables!B61 -> 10 | C220: =IF(B220=0,0,(360/B220)) -> 36 | E220: =IF($C$220=0,0,C$183/$C$220) -> 1380648.689 | F220: 1380648.689 | G220: 1380648.689 | H220: 1380648.689 | I220: 1380648.689 | J220: 1380648.717 | K220: 1380648.744 | L220: =IF($C$220=0,0,J$183/$C$220) -> 1380648.744 | M220: =IF($C$220=0,0,K$183/$C$220) -> 1380648.744 | N220: =IF($C$220=0,0,L$183/$C$220) -> 1380648.744
A222: Gastos Generales de Ventas | B222: =+Variables!B62 -> 10 | C222: =IF(B222=0,0,(360/B222)) -> 36 | E222: =IF($C$222=0,0,C$185/$C$222) -> 181111.1111 | F222: 181111.1111 | G222: 181111.1111 | H222: 181111.1111 | I222: 181111.1111 | J222: 181111.1111 | K222: 181111.1111 | L222: =IF($C$222=0,0,J$185/$C$222) -> 181111.1111 | M222: =IF($C$222=0,0,K$185/$C$222) -> 181111.1111 | N222: =IF($C$222=0,0,L$185/$C$222) -> 181111.1111
A224: Gastos Generales de Distribución | B224: =+Variables!B63 -> 10 | C224: =IF(B224=0,0,(360/B224)) -> 36 | E224: =IF($C$224=0,0,C$187/$C$224) -> 133333.3333 | F224: 133333.3333 | G224: 133333.3333 | H224: 133333.3333 | I224: 133333.3333 | J224: 133333.3333 | K224: 133333.3333 | L224: =IF($C$224=0,0,J$187/$C$224) -> 133333.3333 | M224: =IF($C$224=0,0,K$187/$C$224) -> 133333.3333 | N224: =IF($C$224=0,0,L$187/$C$224) -> 133333.3333
A227: Saldo de Efectivo Requerido en Caja | E227: =SUM(E214:E224) -> 4456019.6 | F227: =SUM(F214:F224) -> 4549352.933 | G227: 4647352.933 | H227: 4750252.933 | I227: 4858297.933 | J227: 4971745.211 | K227: 5090864.851 | L227: =SUM(L214:L224) -> 5215940.445 | M227: 5347269.817 | N227: 5485165.659
A233: Cuadro 8.2
A234: CALCULO DEL CAPITAL DE TRABAJO
A235: (Millones del año 2014)
B236: Días de | C236: Coeficiente de
B237: Cobertura | C237: Renovación | D237: Año
D239: =+B$51 -> 2014 | E239: 2015 | F239: 2016 | G239: 2017 | H239: 2018 | I239: 2019 | J239: 2020 | K239: 2021 | L239: =+J$51 -> 2022 | M239: =+K$51 -> 2023 | N239: =+L$51 -> 2024
A242: Activo Corriente
A244: 1. Saldo de Efectivo | E244: =E227 -> 4456019.6 | F244: 4549352.933 | G244: 4647352.933 | H244: 4750252.933 | I244: 4858297.933 | J244: 4971745.211 | K244: 5090864.851 | L244: =L227 -> 5215940.445 | M244: 5347269.817 | N244: 5485165.659
A245: Requerido en Caja
A246: 2. Cuentas por Cobrar | B246: =+Variables!B64 -> 30 | C246: =IF(B246=0,0,(360/B246)) -> 12 | E246: =IF($C$246=0,0,C$195/$C$246) -> 13747525.47 | F246: 14027525.47 | G246: 14321525.47 | H246: 14630225.47 | I246: 14954360.47 | J246: 15201202.3 | K246: 15275511.22 | L246: =IF($C$246=0,0,J$195/$C$246) -> 15650738 | M246: =IF($C$246=0,0,K$195/$C$246) -> 16044726.12 | N246: =IF($C$246=0,0,L$195/$C$246) -> 16458413.64
A247: 3. Existencias o Inventarios
A248: Materiales e Insumos | B248: =+Variables!B66 -> 30 | C248: =IF(B248=0,0,(360/B248)) -> 12 | E248: =IF($C$248=0,0,C$171/$C$248) -> 5600000 | F248: 5880000 | G248: 6174000 | H248: 6482700 | I248: 6806835 | J248: 7147176.75 | K248: 7504535.588 | L248: =IF($C$248=0,0,J$171/$C$248) -> 7879762.367 | M248: =IF($C$248=0,0,K$171/$C$248) -> 8273750.485 | N248: =IF($C$248=0,0,L$171/$C$248) -> 8687438.009
A249: Productos en Proceso | B249: =Variables!B67 -> 0 | C249: =IF(B249=0,0,(360/B249)) -> 0 | E249: =IF($C$249=0,0,C$180/$C$249) -> 0 | F249: 0 | G249: 0 | H249: 0 | I249: 0 | J249: 0 | K249: 0 | L249: =IF($C$249=0,0,J$180/$C$249) -> 0 | M249: =IF($C$249=0,0,K$180/$C$249) -> 0 | N249: =IF($C$249=0,0,L$180/$C$249) -> 0
A250: Productos Terminados | B250: =Variables!B68 -> 0 | C250: =IF(B250=0,0,(360/B250)) -> 0 | E250: =IF($C$250=0,0,(C$180+C$183)/$C$250) -> 0 | F250: 0 | G250: 0 | H250: 0 | I250: 0 | J250: 0 | K250: 0 | L250: =IF($C$250=0,0,(J$180+J$183)/$C$250) -> 0 | M250: =IF($C$250=0,0,(K$180+K$183)/$C$250) -> 0 | N250: =IF($C$250=0,0,(L$180+L$183)/$C$250) -> 0
A252: Total Activo Corriente | E252: =+SUM(E244:E250) -> 23803545.07 | F252: =+SUM(F244:F250) -> 24456878.4 | G252: 25142878.4 | H252: 25863178.4 | I252: 26619493.4 | J252: 27320124.26 | K252: 27870911.66 | L252: =+SUM(L244:L250) -> 28746440.81 | M252: 29665746.42 | N252: 30631017.31
A254: Incremento del Activo Corriente | E254: =+E252 -> 23803545.07 | F254: =F252-E254 -> 653333.3333 | G254: =+G252-F252 -> 686000 | H254: =+H252-G252 -> 720300 | I254: =+I252-H252 -> 756315 | J254: =+J252-I252 -> 700630.8611 | K254: =+K252-J252 -> 550787.3986 | L254: =+L252-K252 -> 875529.1519 | M254: 919305.6095 | N254: 965270.8899
A257: Pasivo Corriente
A259: 1. Cuentas por Pagar
A260: Materiales e Insumos | B260: =+Variables!B71 -> 60 | C260: =IF(B260=0,0,(360/B260)) -> 6 | E260: =IF($C$260=0,0,C$171/$C$260) -> 11200000 | F260: 11760000 | G260: 12348000 | H260: 12965400 | I260: 13613670 | J260: =IF($C$260=0,0,H$171/$C$260) -> 14294353.5 | K260: =IF($C$260=0,0,I$171/$C$260) -> 15009071.18 | L260: =IF($C$260=0,0,J$171/$C$260) -> 15759524.73 | M260: =IF($C$260=0,0,K$171/$C$260) -> 16547500.97 | N260: =IF($C$260=0,0,L$171/$C$260) -> 17374876.02
A261: Mano de Obra Directa | B261: =+Variables!B72 -> 0 | C261: 0 | E261: =IF($C$261=0,0,C$173/$C$261) -> 0 | F261: 0 | G261: 0 | H261: 0 | I261: 0 | J261: 0 | K261: 0 | L261: =IF($C$261=0,0,J$173/$C$261) -> 0 | M261: =IF($C$261=0,0,K$173/$C$261) -> 0 | N261: =IF($C$261=0,0,L$173/$C$261) -> 0
A262: Gastos Generales de Fabricación | B262: =+Variables!B73 -> 0 | C262: 0 | E262: =IF($C$262=0,0,C$175/$C$262) -> 0 | F262: =IF($C$262=0,0,D$175/$C$262) -> 0 | G262: 0 | H262: 0 | I262: 0 | J262: 0 | K262: 0 | L262: =IF($C$262=0,0,J$175/$C$262) -> 0 | M262: =IF($C$262=0,0,K$175/$C$262) -> 0 | N262: =IF($C$262=0,0,L$175/$C$262) -> 0
A263: Gastos Generales de Administración | B263: =+Variables!B74 -> 0 | C263: 0 | E263: =IF(C263=0,0,C183/C263) -> 0 | F263: =IF(D263=0,0,D183/D263) -> 0 | G263: 0 | H263: 0 | I263: 0 | J263: 0 | K263: 0 | L263: =IF(J263=0,0,J183/J263) -> 0 | M263: =IF(K263=0,0,K183/K263) -> 0 | N263: =IF(L263=0,0,L183/L263) -> 0
A264: Gastos Generales de Ventas | B264: =+Variables!B75 -> 0 | C264: 0 | E264: =IF(C264=0,0,C185/C264) -> 0 | F264: =IF(D264=0,0,D185/D264) -> 0 | G264: 0 | H264: 0 | I264: 0 | J264: 0 | K264: 0 | L264: =IF(J264=0,0,J185/J264) -> 0 | M264: =IF(K264=0,0,K185/K264) -> 0 | N264: =IF(L264=0,0,L185/L264) -> 0
A265: Gastos Generales de Distribución | B265: =+Variables!B76 -> 0 | C265: 0 | E265: =IF(C265=0,0,C187/C265) -> 0 | F265: =IF(D265=0,0,D187/D265) -> 0 | G265: 0 | H265: 0 | I265: 0 | J265: 0 | K265: 0 | L265: =IF(J265=0,0,J187/J265) -> 0 | M265: =IF(K265=0,0,K187/K265) -> 0 | N265: =IF(L265=0,0,L187/L265) -> 0
A267: Total Pasivo Corriente | E267: =SUM(E260:E265) -> 11200000 | F267: 11760000 | G267: 12348000 | H267: 12965400 | I267: 13613670 | J267: 14294353.5 | K267: 15009071.18 | L267: =SUM(L260:L265) -> 15759524.73 | M267: 16547500.97 | N267: 17374876.02
A269: Incremento del Pasivo Corriente | E269: =+E267 -> 11200000 | F269: =+F267 -> 11760000 | G269: =+G267-F267 -> 588000 | H269: =+H267-G267 -> 617400 | I269: =+I267-H267 -> 648270 | J269: =+J267-I267 -> 680683.5 | K269: =+K267-J267 -> 714717.675 | L269: =+L267-K267 -> 750453.5587 | M269: 787976.2367 | N269: 827375.0485
A271: CAPITAL DE TRABAJO
A272: (Activo Corriente menos Pasivo Corriente) | E272: =+E252-E267 -> 12603545.07 | F272: =+F252-F267 -> 12696878.4 | G272: 12794878.4 | H272: 12897778.4 | I272: 13005823.4 | J272: 13025770.76 | K272: 12861840.48 | L272: =+L252-L267 -> 12986916.08 | M272: 13118245.45 | N272: 13256141.29
A274: Incremento del Capital de Trabajo | E274: =+E272 -> 12603545.07 | F274: =+F272-E272 -> 93333.33333 | G274: 98000 | H274: 102900 | I274: 108045 | J274: =+J272-I272 -> 19947.36111 | K274: =+K272-J272 -> -163930.2764 | L274: =+L272-K272 -> 125075.5931 | M274: =+M272-L272 -> 131329.3728 | N274: =+N272-M272 -> 137895.8414
A278: Cuadro 8.4
A279: INVERSIONES EN EL PROYECTO
A280: (Millones del año 2014)
A282: Fase | B282: Inversión | D282: Operacional
A284: Año | B284: =+B$51 -> 2014 | C284: 2015 | D284: 2016 | E284: 2017 | F284: 2018 | G284: 2019 | H284: 2020 | I284: 2021 | J284: 2022 | K284: 2023 | L284: 2024
A286: Nivel de Producción | B286: =+B$53 -> 0 | C286: 0.65 | D286: 0.67 | E286: 0.7 | F286: 0.72 | G286: 0.77 | H286: 0.81 | I286: 0.86 | J286: 0.9 | K286: 0.95 | L286: 1
A288: 1. Inversiones Fijas
A289: (Iniciales y Reposiciones)
A290: Terrenos | B290: =+Variables!C25 -> 0
A291: Edificios | B291: =+Variables!C26 -> 0
A292: Maquinaria y Equipos | B292: =Variables!C28 -> 350000
A293: Vehículos | B293: =Variables!C30 -> 0 | I293: =+Variables!J30 -> 0 | J293: =+Variables!K30 -> 0 | K293: =+Variables!L30 -> 0 | L293: =+Variables!M30 -> 0
A294: Muebles y Enseres | B294: =Variables!C32 -> 16983000
A295: Herramientas | B295: =Variables!C34 -> 0
A298: Total Inversiones | B298: =SUM(B290:B297) -> 17333000 | I298: =SUM(I290:I297) -> 0 | J298: =SUM(J290:J297) -> 0 | K298: 0 | L298: 0
A300: 2. Gastos Preoperativos | B300: =Variables!C38 -> 5610000
A302: 3. Incremento del
A303: Capital de Trabajo | B303: =+D274 -> 0 | C303: 12603545.07 | D303: 93333.33333 | E303: 98000 | F303: 102900 | G303: 108045 | H303: 19947.36111 | I303: -163930.2764 | J303: =+L274 -> 125075.5931 | K303: =+M274 -> 131329.3728 | L303: =+N274 -> 137895.8414
A306: TOTAL INVERSIONES | B306: =+B298+B300+B303 -> 22943000 | C306: =+C298+C300+C303 -> 12603545.07 | D306: =+D298+D300+D303 -> 93333.33333 | E306: 98000 | F306: 102900 | G306: 108045 | H306: 19947.36111 | I306: -163930.2764 | J306: =+J298+J300+J303 -> 125075.5931 | K306: 131329.3728 | L306: 137895.8414
A310: Cuadro 11.1
A311: ESTADO DE GANANCIAS Y PERDIDAS O ESTADO DE RESULTADOS
A312: (Millones del año 2014)
A314: Fase | B314: Inversión | D314: Operacional
A316: Año | B316: =+B$51 -> 2014 | C316: 2015 | D316: 2016 | E316: 2017 | F316: 2018 | G316: 2019 | H316: 2020 | I316: 2021 | J316: 2022 | K316: 2023 | L316: 2024
A318: Nivel de Producción | B318: =+B$53 -> 0 | C318: 0.65 | D318: 0.67 | E318: 0.7 | F318: 0.72 | G318: 0.77 | H318: 0.81 | I318: 0.86 | J318: 0.9 | K318: 0.95 | L318: 1
A320: Ingresos por Concepto de Ventas | B320: =+$B$40 -> 0 | C320: =C41 -> 173000000 | D320: 182700000 | E320: 188400000 | F320: 189600000 | G320: 206300000 | H320: 213200000 | I320: 234400000 | J320: 240100000 | K320: 258000000 | L320: 268900000
A321: Mas Otros Ingresos | B321: 0 | C321: 0 | D321: 0 | E321: 0 | F321: 0 | G321: 0 | H321: 0 | I321: 0 | J321: 0 | K321: 0 | L321: 0
A322: Menos Costos de Operación
A323: y de Financiación | B323: =+B$201 -> 0 | C323: =C$201 -> 167370305.6 | D323: 170511727.6 | E323: 173768690.9 | F323: 177137005.4 | G323: 180609879.4 | H323: 183055216.3 | I323: 183306134.7 | J323: 187808856 | K323: 192536713.4 | L323: 197500963.7
A324: Menos Otros Egresos | B324: 0 | C324: 0 | D324: 0 | E324: 0 | F324: 0 | G324: 0 | H324: 0 | I324: 0 | J324: 0 | K324: 0 | L324: 0
A327: Utilidad Antes de Impuestos | B327: =+B320+B321-B323-B324 -> 0 | C327: =+C320+C321-C323-C324 -> 5629694.4 | D327: =+D320+D321-D323-D324 -> 12188272.38 | E327: 14631309.08 | F327: 12462994.59 | G327: 25690120.62 | H327: 30144783.7 | I327: 51093865.35 | J327: =+J320+J321-J323-J324 -> 52291144 | K327: 65463286.58 | L327: 71399036.29
A329: Menos Impuestos (30%) | B329: =+B327*Variables!$B$47 -> 0 | C329: =IF(C327<0,0,C327*Variables!B47) -> 1688908.32 | D329: =+D327*Variables!$B$47 -> 3656481.715 | E329: =+E327*Variables!$B$47 -> 4389392.725 | F329: =+F327*Variables!$B$47 -> 3738898.378 | G329: =+G327*Variables!$B$47 -> 7707036.187 | H329: =+H327*Variables!$B$47 -> 9043435.111 | I329: =+I327*Variables!$B$47 -> 15328159.61 | J329: =+J327*Variables!$B$47 -> 15687343.2 | K329: =+K327*Variables!$B$47 -> 19638985.97 | L329: =+L327*Variables!$B$47 -> 21419710.89
A332: Utilidad Neta | B332: =+B327-B329 -> 0 | C332: =+C327-C329 -> 3940786.08 | D332: =+D327-D329 -> 8531790.669 | E332: 10241916.36 | F332: 8724096.216 | G332: 17983084.44 | H332: 21101348.59 | I332: 35765705.75 | J332: =+J327-J329 -> 36603800.8 | K332: 45824300.6 | L332: 49979325.4
A334: Menos Dividendos | B334: =+B332*Variables!$B$48 -> 0 | C334: =+C332*Variables!$B$48 -> 0 | D334: =+D332*Variables!$B$48 -> 0 | E334: =+E332*Variables!$B$48 -> 0 | F334: =+F332*Variables!$B$48 -> 0 | G334: =+G332*Variables!$B$48 -> 0 | H334: =+H332*Variables!$B$48 -> 0 | I334: =+I332*Variables!$B$48 -> 0 | J334: =+J332*Variables!$B$48 -> 0 | K334: =+K332*Variables!$B$48 -> 0 | L334: =+L332*Variables!$B$48 -> 0
A338: Utilidades no Repartidas | B338: =+B332-B334 -> 0 | C338: =+C332-C334 -> 3940786.08 | D338: =+D332-D334 -> 8531790.669 | E338: 10241916.36 | F338: 8724096.216 | G338: 17983084.44 | H338: 21101348.59 | I338: 35765705.75 | J338: =+J332-J334 -> 36603800.8 | K338: 45824300.6 | L338: 49979325.4
A340: Acumuladas (Reservas) | B340: =+B338 -> 0 | C340: =+B340+C338 -> 3940786.08 | D340: =+C340+D338 -> 12472576.75 | E340: 22714493.11 | F340: 31438589.32 | G340: 49421673.76 | H340: 70523022.35 | I340: 106288728.1 | J340: =+I340+J338 -> 142892528.9 | K340: =+J340+K338 -> 188716829.5 | L340: =+K340+L338 -> 238696154.9
A344: Cuadro 12,21
A345: ESTADO DE GANANCIAS Y PERDIDAS O ESTADO DE RESULTADOS
A346: (En la forma que lo exige la banca comercial)
... 291 more rows

Sheet Indicadores
A1: Cuadro 12.1
A2: FLUJO DE EFECTIVO NETO
A3: (Millones del año 2014)
A5: Fase | B5: Inversión | D5: Operacional | M5: Valor
M6: Remanente
A7: Año | B7: =+Variables!C3 -> 2014 | C7: =+Variables!D3 -> 2015 | D7: =+Variables!E3 -> 2016 | E7: =+Variables!F3 -> 2017 | F7: =+Variables!G3 -> 2018 | G7: =+Variables!H3 -> 2019 | H7: =+Variables!I3 -> 2020 | I7: =+Variables!J3 -> 2021 | J7: =+Variables!K3 -> 2022 | K7: =+Variables!L3 -> 2023 | L7: =+Variables!M3 -> 2024 | M7: en el
M8: Ultimo
A9: Nivel de Producción | B9: =+Cálculos!B10 -> 0 | C9: =+Cálculos!C10 -> 0.65 | D9: =+Cálculos!D10 -> 0.67 | E9: =+Cálculos!E10 -> 0.7 | F9: =+Cálculos!F10 -> 0.72 | G9: =+Cálculos!G10 -> 0.77 | H9: =+Cálculos!H10 -> 0.81 | I9: =+Cálculos!I10 -> 0.86 | J9: =+Cálculos!J10 -> 0.9 | K9: =+Cálculos!K10 -> 0.95 | L9: =+Cálculos!L10 -> 1 | M9: Año
A11: ENTRADAS DE EFECTIVO
A12: Prestamos | B12: =Variables!C49 -> 10000000 | C12: =+Variables!D49 -> 0
A13: Ingresos por concepto de ventas | B13: =+Cálculos!B445 -> 0 | C13: =+Cálculos!C445 -> 173000000 | D13: =+Cálculos!D445 -> 182700000 | E13: =+Cálculos!E445 -> 188400000 | F13: =+Cálculos!F445 -> 189600000 | G13: =+Cálculos!G445 -> 206300000 | H13: =+Cálculos!H445 -> 213200000 | I13: =+Cálculos!I445 -> 234400000 | J13: =+Cálculos!J445 -> 240100000 | K13: =+Cálculos!K445 -> 258000000 | L13: =+Cálculos!L445 -> 268900000
A14: Otros Ingresos
A15: Valor Remanente en el ultimo año | B15: =+Cálculos!B447 -> 0 | C15: =+Cálculos!C447 -> 0 | M15: =Cálculos!M447 -> 9859541.292
A19: TOTAL ENTRADAS EFECTIVO | B19: =SUM(B12:B16) -> 10000000 | C19: =SUM(C12:C16) -> 173000000 | D19: 182700000 | E19: 188400000 | F19: 189600000 | G19: 206300000 | H19: 213200000 | I19: 234400000 | J19: =SUM(J12:J16) -> 240100000 | K19: 258000000 | L19: 268900000 | M19: 9859541.292
A22: SALIDAS DE EFECTIVO
A23: Inversiones basicas | B23: =+Cálculos!B306 -> 22943000 | C23: =+Cálculos!C306 -> 12603545.07 | D23: =+Cálculos!D306 -> 93333.33333 | E23: =+Cálculos!E306 -> 98000 | F23: =+Cálculos!F306 -> 102900 | G23: =+Cálculos!G306 -> 108045 | H23: =+Cálculos!H306 -> 19947.36111 | I23: =+Cálculos!I306 -> -163930.2764 | J23: =+Cálculos!J306 -> 125075.5931 | K23: =+Cálculos!K306 -> 131329.3728 | L23: =+Cálculos!L306 -> 137895.8414
A24: Costos de operación netos de
A25: depreciacion y amortizacion diferidos | B25: =+Cálculos!B195-Cálculos!B177-Cálculos!B189 -> 0 | C25: =+Cálculos!C195-Cálculos!C177-Cálculos!C189 -> 160416705.6 | D25: =+Cálculos!D195-Cálculos!D177-Cálculos!D189 -> 163776705.6 | E25: =+Cálculos!E195-Cálculos!E177-Cálculos!E189 -> 167304705.6 | F25: =+Cálculos!F195-Cálculos!F177-Cálculos!F189 -> 171009105.6 | G25: =+Cálculos!G195-Cálculos!G177-Cálculos!G189 -> 174898725.6 | H25: =+Cálculos!H195-Cálculos!H177-Cálculos!H189 -> 178982827.6 | I25: =+Cálculos!I195-Cálculos!I177-Cálculos!I189 -> 183271134.7 | J25: =+Cálculos!J195-Cálculos!J177-Cálculos!J189 -> 187773856 | K25: =+Cálculos!K195-Cálculos!K177-Cálculos!K189 -> 192501713.4 | L25: =+Cálculos!L195-Cálculos!L177-Cálculos!L189 -> 197465963.7
A26: Costos de Financiacion | B26: =+Cálculos!B197 -> 0 | C26: =+Cálculos!C197 -> 2400000 | D26: =+Cálculos!D197 -> 2181422.016 | E26: =+Cálculos!E197 -> 1910385.315 | F26: =+Cálculos!F197 -> 1574299.806 | G26: =+Cálculos!G197 -> 1157553.775 | H26: =+Cálculos!H197 -> 640788.6971 | I26: =+Cálculos!I197 -> 0 | J26: =+Cálculos!J197 -> 0 | K26: =+Cálculos!K197 -> 0 | L26: =+Cálculos!L197 -> 0
A27: Pago prestamos | B27: =Cálculos!B97 -> 0 | C27: =Cálculos!C97 -> 910741.6016 | D27: =Cálculos!D97 -> 1129319.586 | E27: =Cálculos!E97 -> 1400356.287 | F27: =Cálculos!F97 -> 1736441.795 | G27: =Cálculos!G97 -> 2153187.826 | H27: =Cálculos!H97 -> 2669952.904 | I27: =Cálculos!I97 -> 0 | J27: =Cálculos!J97 -> 0 | K27: =Cálculos!K97 -> 0 | L27: =Cálculos!L97 -> 0
A28: Impuestos | B28: =+Cálculos!B371 -> 0 | C28: =+Cálculos!C371 -> 1688908.32 | D28: =+Cálculos!D371 -> 3656481.715 | E28: =+Cálculos!E371 -> 4389392.725 | F28: =+Cálculos!F371 -> 3738898.378 | G28: =+Cálculos!G371 -> 7707036.187 | H28: =+Cálculos!H371 -> 9043435.111 | I28: =+Cálculos!I371 -> 15328159.61 | J28: =+Cálculos!J371 -> 15687343.2 | K28: =+Cálculos!K371 -> 19638985.97 | L28: =+Cálculos!L371 -> 21419710.89
A32: TOTAL SALIDAS EFECTIVO | B32: =SUM(B23:B30) -> 22943000 | C32: =SUM(C23:C30) -> 178019900.6 | D32: 170837262.3 | E32: 175102839.9 | F32: 178161645.6 | G32: 186024548.4 | H32: 191356951.7 | I32: 198435364 | J32: =SUM(J23:J30) -> 203586274.8 | K32: 212272028.8 | L32: 219023570.4 | M32: 0
A34: ENTRADAS MENOS SALIDAS | B34: =+B19-B32 -> -12943000 | C34: -5019900.588 | D34: 11862737.75 | E34: 13297160.07 | F34: 11438354.42 | G34: 20275451.61 | H34: 21843048.33 | I34: 35964636.02 | J34: =+J19-J32 -> 36513725.21 | K34: 45727971.23 | L34: 49876429.56 | M34: 9859541.292
A37: FLUJO DE EFECTIVO NETO (FEN) | B37: =+B34 -> -12943000 | C37: =+C34 -> -5019900.588 | D37: 11862737.75 | E37: 13297160.07 | F37: 11438354.42 | G37: 20275451.61 | H37: 21843048.33 | I37: 35964636.02 | J37: 36513725.21 | K37: 45727971.23 | L37: =+L34+M34 -> 59735970.85
A41: CALCULO DE LA TIO - COSTO DE CAPITAL
A42: FUENTES DE FINANCIACIÓN | B42: VALORES | C42: PROPORCIONES | D42: TASAS DE INTERES | E42: TADA DE INTERES EFECTIVA | F42: TASAS PONDERADAS
A43: Aporte de los socios | B43: =B37*-1 -> 12943000 | C43: =B43/$B$45 -> 0.5641372096 | D43: 0.2 | E43: =D43 -> 0.2 | F43: =E43*C43 -> 0.1128274419
A44: Crédito bancario | B44: =B19 -> 10000000 | C44: =B44/$B$45 -> 0.4358627904 | D44: 0.24 | E44: =D44*(1-Variables!$B$47) -> 0.168 | F44: =E44*C44 -> 0.07322494879
A45: Total inversión | B45: =SUM(B43:B44) -> 22943000 | C45: =SUM(C43:C44) -> 1 | E45: TOTAL | F45: =SUM(F43:F44) -> 0.1860523907
E46: RIESGO | F46: 0.1
E47: TREMA | F47: =F45+F46 -> 0.2860523907
A48: TASA DE INTERES DE OPORTUNIDAD DEFLACTADA | C48: =ROUND((((1+F47)/(1.065))-1),2) -> 0.21
D50: =2.16/100 -> 0.0216
A52: INDICADORES DE RENTABILIDAD FLUJO DE FONDOS CON FINANCIACIÓN
A53: Fase | B53: Inversión | C53: Operacional | M53: Valor remanente en el último año
A54: Año | B54: =Variables!C$3 -> 2014 | C54: =Variables!D$3 -> 2015 | D54: =Variables!E$3 -> 2016 | E54: =Variables!F$3 -> 2017 | F54: =Variables!G$3 -> 2018 | G54: =Variables!H$3 -> 2019 | H54: =Variables!I$3 -> 2020 | I54: =Variables!J$3 -> 2021 | J54: =Variables!K$3 -> 2022 | K54: =Variables!L$3 -> 2023 | L54: =Variables!M$3 -> 2024
A55: Nivel de producción | B55: =Variables!C14 -> 0 | C55: =Variables!D14 -> 0.65 | D55: =Variables!E14 -> 0.67 | E55: =Variables!F14 -> 0.7 | F55: =Variables!G14 -> 0.72 | G55: =Variables!H14 -> 0.77 | H55: =Variables!I14 -> 0.81 | I55: =Variables!J14 -> 0.86 | J55: =Variables!K14 -> 0.9 | K55: =Variables!L14 -> 0.95 | L55: =Variables!M14 -> 1
A56: FLUJO DE FONDOS NETO | B56: =B37 -> -12943000 | C56: -5019900.588 | D56: 11862737.75 | E56: 13297160.07 | F56: 11438354.42 | G56: 20275451.61 | H56: =H37 -> 21843048.33 | I56: =I37 -> 35964636.02 | J56: =J37 -> 36513725.21 | K56: 45727971.23 | L56: 59735970.85 | M56: =+H15 -> 0
A57: INGRESOS DEL FLUJO DE FONDOS O INGRESOS DEL PROYECTO | C57: =C56 -> -5019900.588 | D57: =IF(D56>0,D56,0) -> 11862737.75 | E57: 13297160.07 | F57: 11438354.42 | G57: 20275451.61 | H57: 21843048.33 | I57: 35964636.02 | J57: =IF(J56>0,J56,0) -> 36513725.21 | K57: 45727971.23 | L57: 59735970.85
A58: EGRESOS DEL PROYECTO | B58: =IF(B56<0,(B56*-1),0) -> 12943000 | D58: =IF(D56<0,D56,0) -> 0 | E58: 0 | F58: 0 | G58: 0 | H58: 0 | I58: 0 | J58: =IF(J56<0,J56,0) -> 0 | K58: 0 | L58: 0
A59: TIO | B59: =C48 -> 0.21
A60: Valor presente neto (VPN) | B60: =NPV(B59,C56:L56)+B56 -> 53150653.12 | C60: =B56+((C56/(1+B59)^1))+(D56/(1+B59)^2)+(E56/(1+B59)^3)+(F56/(1+B59)^4)+(G56/(1+B59)^5)+(H56/(1+B59)^6)+(I56/(1+B59)^7)+(J56/(1+B59)^8)+(K56/(1+B59)^9)+(L56/(1+B59)^10) -> 53150653.12
A61: Tasa interna de retorno (TIR) | B61: =IF(ISERROR(IRR(B56:L56)),0,IRR(B56:L56)) -> 0.6042639916
A62: RELACIÓN BENEFICIO COSTO
A63: Valor presente de ingresos | B63: =NPV(B59,C57:L57) -> 66093653.12
A64: Valor presente de egresos | B64: =B58 -> 12943000
A65: (B/C)-1 | B65: =(B63/B64)-1 -> 4.106517278
A66: COSTO ANUAL EQUIVALENTE | B66: =PMT(B59,5,-B60) -> 18165050.46
A67: Valor futuro VF | B67: =FV(B59,5,-B66) -> 137859105.8
A68: TASA VERDADERA DE RENTABILIDAD
A69: Costo anual equivalente de los ingresos | B69: =PMT(B59,5,-B63) -> 22588519.12
A70: Valor futuro de ingresos VFi | B70: =FV(B59,8,-B69) -> 386691028.8
A71: TASA VERDADERA DE RENTABILIDAD
A72: Nuevo flujo de fondos | B72: =CONCATENATE("AÑO ",B54) -> AÑO 2014 | C72: =CONCATENATE("AÑO ",C54) -> AÑO 2015 | D72: =CONCATENATE("AÑO ",D54) -> AÑO 2016 | E72: AÑO 2017 | F72: AÑO 2018 | G72: AÑO 2019 | H72: AÑO 2020 | I72: AÑO 2021 | J72: AÑO 2022 | K72: AÑO 2023 | L72: AÑO 2024
A73: VALORES | B73: =B64*-1 -> -12943000 | C73: 0 | D73: 0 | E73: 0 | F73: 0 | G73: 0 | H73: 0 | I73: 0 | J73: 0 | K73: 0 | L73: =B70 -> 386691028.8
A74: TVR | B74: =IRR(B73:L73) -> 0.4045361273
B77: SIGNIFICADO DE LA TASA INTERNA DE RETORNO - FLUJO DE FONDOS SIN FINANCIACIÓN
B78: Períodos | C78: Saldo al incio del período | D78: Rentabilidad ganada durante el período | E78: Saldo inicial más rentabilidad | F78: Retiro al final del período | G78: Saldo al final del período
C79: TIR= | D79: =B61 -> 0.6042639916
B80: 1 - 2 | C80: =B56*-1 -> 12943000 | D80: =C80*$D$79 -> 7820988.843 | E80: =+C80+D80 -> 20763988.84 | F80: =C56 -> -5019900.588 | G80: =E80-F80 -> 25783889.43
B81: 2 - 3 | C81: =G80 -> 25783889.43 | D81: =C81*$D$79 -> 15580275.95 | E81: =+C81+D81 -> 41364165.38 | F81: =D56 -> 11862737.75 | G81: =E81-F81 -> 29501427.63
B82: 3 - 4 | C82: =G81 -> 29501427.63 | D82: =C82*$D$79 -> 17826650.41 | E82: =+C82+D82 -> 47328078.04 | F82: =E56 -> 13297160.07 | G82: =E82-F82 -> 34030917.97
B83: 4 - 5 | C83: =G82 -> 34030917.97 | D83: =C83*$D$79 -> 20563658.33 | E83: =+C83+D83 -> 54594576.29 | F83: =F56 -> 11438354.42 | G83: =E83-F83 -> 43156221.87
B84: 5 - 6 | C84: =G83 -> 43156221.87 | D84: =C84*$D$79 -> 26077750.89 | E84: =+C84+D84 -> 69233972.76 | F84: =G56 -> 20275451.61 | G84: =E84-F84 -> 48958521.15
B85: 6 - 7 | C85: =G84 -> 48958521.15 | D85: =C85*$D$79 -> 29583871.41 | E85: =+C85+D85 -> 78542392.57 | F85: =H56 -> 21843048.33 | G85: =E85-F85 -> 56699344.24
B86: 7 - 8 | C86: 56699344.24 | D86: 34261372.07 | E86: 90960716.31 | F86: =I56 -> 35964636.02 | G86: 54996080.29
B87: 8 - 9 | C87: =G86 -> 54996080.29 | D87: 33232150.99 | E87: =+C87+D87 -> 88228231.28 | F87: =J56 -> 36513725.21 | G87: =E87-F87 -> 51714506.08
B88: 9 - 10 | C88: 51714506.08 | D88: 31249213.86 | E88: 82963719.94 | F88: =K56 -> 45727971.23 | G88: 37235748.71
B89: 10 - 11 | C89: =G88 -> 37235748.71 | D89: 22500222.14 | E89: =+C89+D89 -> 59735970.85 | F89: =L56 -> 59735970.85 | G89: =E89-F89 -> -6.034970284e-07
C94: i | D94: VP
C95: 0 | D95: =NPV(C95,$C$56:$L$56)+$B$56 -> 238696154.9
C96: 0.05 | D96: =NPV(C96,$C$56:$L$56)+$B$56 -> 162541594.3
C97: 0.1 | D97: 112932957.9
C98: 0.15 | D98: 79690055.49
C99: 0.2 | D99: 56825576.61
C100: 0.25 | D100: 40716334.48
C101: 0.3 | D101: 29111356.8
C102: 0.35 | D102: 20577726.25
C103: 0.4 | D103: 14182426.98
C104: 0.45 | D104: 9305021.255
C105: 0.5 | D105: 5524744.394
C106: 0.55 | D106: 2550953.815
C107: 0.6 | D107: 179403.8535
C108: 0.65 | D108: -1735772.146
C109: 0.7 | D109: -3300338.788
C110: 0.75 | D110: -4592083.343
C111: 0.8 | D111: -5668987.483
C112: 0.85 | D112: -6574817.704
C113: 0.9 | D113: -7343004.169
C114: 0.95 | D114: -7999368.172
C115: 1 | D115: -8564064.392
B128: TASAS DE INTERÉS | C128: VPN INGRESOS | D128: VPN EGRESOS | E128: B/C-1 | F128: VP | G128: TIR
B129: 0 | C129: =NPV(B129,$C$56:$L$56) -> 251639154.9 | D129: =$B$56*-1 -> 12943000 | E129: =(C129/D129)-1 -> 18.44210422 | F129: =NPV(B129,$C$56:$L$56)+$B$56 -> 238696154.9 | G129: =$B$61 -> 0.6042639916
B130: 0.05 | C130: =NPV(B130,$C$56:$L$56) -> 175484594.3 | D130: =$B$56*-1 -> 12943000 | E130: =(C130/D130)-1 -> 12.55826272 | F130: =NPV(B130,$C$56:$L$56)+$B$56 -> 162541594.3 | G130: =$B$61 -> 0.6042639916
B131: 0.1 | C131: 125875957.9 | D131: 12943000 | E131: 8.725408163 | F131: 112932957.9 | G131: 0.6042639916
B132: 0.15 | C132: 92633055.49 | D132: 12943000 | E132: 6.157000347 | F132: 79690055.49 | G132: 0.6042639916
B133: 0.2 | C133: 69768576.61 | D133: 12943000 | E133: 4.390448629 | F133: 56825576.61 | G133: 0.6042639916
B134: 0.25 | C134: 53659334.48 | D134: 12943000 | E134: 3.145818935 | F134: 40716334.48 | G134: 0.6042639916
B135: 0.3 | C135: 42054356.8 | D135: 12943000 | E135: 2.249197002 | F135: 29111356.8 | G135: 0.6042639916
B136: 0.35 | C136: 33520726.25 | D136: 12943000 | E136: 1.589873001 | F136: 20577726.25 | G136: 0.6042639916
B137: 0.4 | C137: 27125426.98 | D137: 12943000 | E137: 1.095760409 | F137: 14182426.98 | G137: 0.6042639916
B138: 0.45 | C138: 22248021.25 | D138: 12943000 | E138: 0.7189230669 | F138: 9305021.255 | G138: 0.6042639916
B139: 0.5 | C139: 18467744.39 | D139: 12943000 | E139: 0.4268519195 | F139: 5524744.394 | G139: 0.6042639916
B140: 0.55 | C140: 15493953.81 | D140: 12943000 | E140: 0.1970913864 | F140: 2550953.815 | G140: 0.6042639916
B141: 0.6 | C141: 13122403.85 | D141: 12943000 | E141: 0.01386107189 | F141: 179403.8535 | G141: 0.6042639916
B142: 0.65 | C142: 11207227.85 | D142: 12943000 | E142: -0.1341089504 | F142: -1735772.146 | G142: 0.6042639916
B143: 0.7 | C143: 9642661.212 | D143: 12943000 | E143: -0.2549902486 | F143: -3300338.788 | G143: 0.6042639916
B144: 0.75 | C144: 8350916.657 | D144: 12943000 | E144: -0.3547928102 | F144: -4592083.343 | G144: 0.6042639916
B145: 0.8 | C145: 7274012.517 | D145: 12943000 | E145: -0.437996406 | F145: -5668987.483 | G145: 0.6042639916
B146: 0.85 | C146: 6368182.296 | D146: 12943000 | E146: -0.507982516 | F146: -6574817.704 | G146: 0.6042639916
B147: 0.9 | C147: 5599995.831 | D147: 12943000 | E147: -0.567334016 | F147: -7343004.169 | G147: 0.6042639916
B148: 0.95 | C148: 4943631.828 | D148: 12943000 | E148: -0.6180459068 | F148: -7999368.172 | G148: 0.6042639916
B149: 1 | C149: 4378935.608 | D149: 12943000 | E149: -0.6616753761 | F149: -8564064.392 | G149: 0.6042639916
B157: TASAS DE INTERES | C157: CAE INGRESOS | D157: AÑO 2014 | E157: AÑO 2024 | F157: TVR | G157: TIR
B158: 0 | C158: =PMT(B158,11,-C129) -> 22876286.81 | D158: =D129*-1 -> -12943000 | E158: =FV(B158,11,-C158) -> 251639154.9 | F158: =((E158/(D158*-1))^(1/5))-1 -> 0.8102920882 | G158: 0.6042639916
B159: 0.05 | C159: =PMT(B159,11,-C130) -> 21126395.78 | D159: =D130*-1 -> -12943000 | E159: =FV(B159,11,-C159) -> 300138208.4 | F159: =((E159/(D159*-1))^(1/5))-1 -> 0.8752417649 | G159: 0.6042639916
B160: 0.1 | C160: 19380257.98 | D160: -12943000 | E160: 359138798.2 | F160: 0.9437726846 | G160: 0.6042639916
B161: 0.15 | C161: 17699303.7 | D161: -12943000 | E161: 430965230.4 | F161: 1.015957891 | G161: 0.6042639916
B162: 0.2 | C162: 16123782.77 | D162: -12943000 | E162: 518386364.3 | F162: 1.091817171 | G162: 0.6042639916
B163: 0.25 | C163: 14675444.72 | D163: -12943000 | E163: 624676869.2 | F163: 1.17132131 | G163: 0.6042639916
B164: 0.3 | C164: 13361880.99 | D164: -12943000 | E164: 753681526.5 | F164: 1.254397966 | G164: 0.6042639916
B165: 0.35 | C165: 12181011.89 | D165: -12943000 | E165: 909881579.5 | F165: 1.340938393 | G165: 0.6042639916
B166: 0.4 | C166: 11124888.9 | D166: -12943000 | E166: 1098461843 | F166: 1.43080435 | G166: 0.6042639916
B167: 0.45 | C167: 10182535.48 | D167: -12943000 | E167: 1325376956 | F167: 1.523834617 | G167: 0.6042639916
B168: 0.5 | C168: 9341873.786 | D168: -12943000 | E168: 1597414803 | F168: 1.61985075 | G168: 0.6042639916
B169: 0.55 | C169: 8590920.009 | D169: -12943000 | E169: 1922254724 | F169: 1.718661876 | G169: 0.6042639916
B170: 0.6 | C170: 7918453.509 | D170: -12943000 | E170: 2308517699 | F170: 1.820068461 | G170: 0.6042639916
B171: 0.65 | C171: 7314336.286 | D171: -12943000 | E171: 2765805195 | F171: 1.923865072 | G171: 0.6042639916
B172: 0.7 | C172: 6769615.521 | D172: -12943000 | E172: 3304722852 | F172: 2.029842258 | G172: 0.6042639916
B173: 0.75 | C173: 6276501.203 | D173: -12943000 | E173: 3936884602 | F173: 2.137787631 | G173: 0.6042639916
B174: 0.8 | C174: 5828278.666 | D174: -12943000 | E174: 4674892194 | F174: 2.247486316 | G174: 0.6042639916
B175: 0.85 | C175: 5419192.955 | D175: -12943000 | E175: 5532284420 | F175: 2.358720845 | G175: 0.6042639916
B176: 0.9 | C176: 5044326.504 | D176: -12943000 | E176: 6523449642 | F176: 2.47127062 | G176: 0.6042639916
B177: 0.95 | C177: 4699481.818 | D177: -12943000 | E177: 7663494405 | F177: 2.584911004 | G177: 0.6042639916
B178: 1 | C178: 4381074.804 | D178: -12943000 | E178: 8968060124 | F178: 2.699412094 | G178: 0.6042639916

Sheet Hoja4 (hidden)
A1: MÉTODO DE LÍNEA RECTA
A2: TIPO DE ACTIVO: | B2: VEHÍCULO
A3: VIDA ÚTIL (AÑOS): | B3: 3
A4: COSTO DEL ACTIVO | B4: 1000000
A5: VALOR DE SALVAMENTO: | B5: 0.1 | C5: DEL COSTO DEL ACTIVO
B7: TABLA DE DEPRECIACIÓN
B8: AÑOS | C8: DEPRECIACIÓN ANUAL | D8: VALOR EN LIBROS
B9: 0 | D9: =B4 -> 1000000
B10: 1 | C10: =+($B$4-($B$4*$B$5))/$B$3 -> 300000 | D10: =+D9-C10 -> 700000
B11: 2 | C11: =+($B$4-($B$4*$B$5))/$B$3 -> 300000 | D11: =+D10-C11 -> 400000 | E11: VALOR COMERCIAL | F11: =D9 -> 1000000
B12: 3 | C12: =+($B$4-($B$4*$B$5))/$B$3 -> 300000 | D12: =+D11-C12 -> 100000 | E12: MENOS V L | F12: =D11 -> 400000
E13: GANANCIA OCASIONAL | F13: =F11-F12 -> 600000
E14: IMP. RENTA 25% | F14: =F13*25% -> 150000
A17: MÉTODO DE LA SUMA DE LOS DÍGITOS
A18: TIPO DE ACTIVO: | B18: VEHÍCULO
A19: VIDA ÚTIL (AÑOS): | B19: 3
A20: COSTO DEL ACTIVO | B20: 1000000
A21: VALOR DE SALVAMENTO: | B21: 0.1 | C21: DEL COSTO DEL ACTIVO
A22: SUMA DE LOS DÍGITOS | B22: =1+2+3 -> 6
B25: TABLA DE DEPRECIACIÓN
B26: AÑOS | C26: DEPRECIACIÓN ANUAL | D26: VALOR EN LIBROS
B27: 0 | D27: =B20 -> 1000000
B28: 1 | C28: =($B$20*$B$19)/$B$22 -> 500000 | D28: =+D27-C28 -> 500000
B29: 2 | C29: =($B$20*($B$19-1))/$B$22 -> 333333.3333 | D29: =+D28-C29 -> 166666.6667
B30: 3 | C30: =($B$20*($B$19-2))/$B$22 -> 166666.6667 | D30: =+D29-C30 -> 0
A33: MÉTODO DOBLE SALDO DECLINANTE
A34: TIPO DE ACTIVO: | B34: VEHÍCULO
A35: VIDA ÚTIL (AÑOS): | B35: 3
A36: COSTO DEL ACTIVO | B36: 1000000
A37: CÁLCULO DEL FACTOR | B37: =1/B35 -> 0.3333333333 | C37: =+B37*2 -> 0.6666666667
B40: TABLA DE DEPRECIACIÓN
B41: AÑOS | C41: DEPRECIACIÓN ANUAL | D41: VALOR EN LIBROS
B42: 0 | D42: =B36 -> 1000000
B43: 1 | C43: =+D42*$C$37 -> 666666.6667 | D43: =+D42-C43 -> 333333.3333
B44: 2 | C44: =+D43*$C$37 -> 222222.2222 | D44: =+D43-C44 -> 111111.1111
B45: 3 | C45: =+D44*$C$37 -> 74074.07407 | D45: =+D44-C45 -> 37037.03704
A48: MÉTODO UNIDADES DE PRODUCCIÓN
A49: TIPO DE ACTIVO: | B49: VEHÍCULO
A50: VIDA ÚTIL (AÑOS): | B50: 3
A51: COSTO DEL ACTIVO | B51: 1000000
A52: CAPACIDAD MÁXIMA EN KM | B52: 90000 | C52: =+B52*2 -> 180000
A53: COSTO UNITARIO POR KM | B53: =+B51/B52 -> 11.11111111
B56: AÑO1 | C56: AÑO2 | D56: AÑO3
B57: 40000 | C57: 30000 | D57: 20000
A58: KM RECORRIDOS
B60: TABLA DE DEPRECIACIÓN
B61: AÑOS | C61: DEPRECIACIÓN ANUAL | D61: VALOR EN LIBROS
B62: 0 | D62: =B36 -> 1000000
B63: 1 | C63: =+B57*B53 -> 444444.4444 | D63: =+D62-C63 -> 555555.5556
B64: 2 | C64: =+C57*B53 -> 333333.3333 | D64: =+D63-C64 -> 222222.2222
B65: 3 | C65: =+D57*B53 -> 222222.2222 | D65: =+D64-C65 -> 0

Sheet Ppto MP
A1: Cuadro 5.2
A2: PRESUPUESTO DE MATERIA PRIMA DIRECTA
A3: Nombre genérico | C3: Unidad de medida | D3: A Ñ O 1 | G3: A Ñ O 2 | J3: A Ñ O 3 | M3: A Ñ O 4 | P3: A Ñ O 5 | S3: A Ñ O 6 | V3: A Ñ O 7 | Y3: A Ñ O 8 | AB3: A Ñ O 9 | AE3: A Ñ O 10 | AH3: A Ñ O 11
D4: Cantidad | E4: Costo unitario | F4: Costo total | G4: Cantidad | H4: Costo unitario | I4: Costo total | J4: Cantidad | K4: Costo unitario | L4: Costo total | M4: Cantidad | N4: Costo unitario | O4: Costo total | P4: Cantidad | Q4: Costo unitario | R4: Costo total | S4: Cantidad | T4: Costo unitario | U4: Costo total | V4: Cantidad | W4: Costo unitario | X4: Costo total | Y4: Cantidad | Z4: Costo unitario | AA4: Costo total | AB4: Cantidad | AC4: Costo unitario | AD4: Costo total | AE4: Cantidad | AF4: Costo unitario | AG4: Costo total | AH4: Cantidad | AI4: Costo unitario | AJ4: Costo total
A5: INSUMOS
A6: Material didáctico | C6: un | D6: =300*12 -> 3600 | E6: 10000 | F6: =D6*E6 -> 36000000 | G6: =+D6*1.05 -> 3780 | H6: =E6 -> 10000 | I6: =G6*H6 -> 37800000 | J6: =+G6*1.05 -> 3969 | K6: =E6 -> 10000 | L6: =J6*K6 -> 39690000 | M6: =+J6*1.05 -> 4167.45 | N6: =E6 -> 10000 | O6: =M6*N6 -> 41674500 | P6: =+M6*1.05 -> 4375.8225 | Q6: =E6 -> 10000 | R6: =P6*Q6 -> 43758225 | S6: =+P6*1.05 -> 4594.613625 | T6: =K6 -> 10000 | U6: =S6*T6 -> 45946136.25 | V6: =+S6*1.05 -> 4824.344306 | W6: =K6 -> 10000 | X6: =V6*W6 -> 48243443.06 | Y6: =+V6*1.05 -> 5065.561522 | Z6: =N6 -> 10000 | AA6: =Y6*Z6 -> 50655615.22 | AB6: =+Y6*1.05 -> 5318.839598 | AC6: =Q6 -> 10000 | AD6: =AB6*AC6 -> 53188395.98 | AE6: =+AB6*1.05 -> 5584.781578 | AF6: =T6 -> 10000 | AG6: =AE6*AF6 -> 55847815.78 | AH6: =+AE6*1.05 -> 5864.020656 | AI6: =W6 -> 10000 | AJ6: =AH6*AI6 -> 58640206.56
A7: Refrigerio | C7: un | D7: =300*12 -> 3600 | E7: 3000 | F7: =D7*E7 -> 10800000 | G7: 3780 | H7: =E7 -> 3000 | I7: 11340000 | J7: 3969 | K7: 3000 | L7: 11907000 | M7: 4167.45 | N7: 3000 | O7: 12502350 | P7: 4375.8225 | Q7: =E7 -> 3000 | R7: 13127467.5 | S7: 4594.613625 | T7: 3000 | U7: 13783840.88 | V7: 4824.344306 | W7: =K7 -> 3000 | X7: 14473032.92 | Y7: 5065.561522 | Z7: =N7 -> 3000 | AA7: 15196684.56 | AB7: 5318.839598 | AC7: =Q7 -> 3000 | AD7: 15956518.79 | AE7: 5584.781578 | AF7: =T7 -> 3000 | AG7: 16754344.73 | AH7: 5864.020656 | AI7: =W7 -> 3000 | AJ7: 17592061.97
A8: Lápices | C8: un | D8: =500*12 -> 6000 | E8: 1000 | F8: 6000000 | G8: 6300 | H8: 1000 | I8: 6300000 | J8: 6615 | K8: 1000 | L8: 6615000 | M8: 6945.75 | N8: 1000 | O8: 6945750 | P8: 7293.0375 | Q8: 1000 | R8: 7293037.5 | S8: 7657.689375 | T8: 1000 | U8: 7657689.375 | V8: 8040.573844 | W8: 1000 | X8: 8040573.844 | Y8: 8442.602536 | Z8: 1000 | AA8: 8442602.536 | AB8: 8864.732663 | AC8: 1000 | AD8: 8864732.663 | AE8: 9307.969296 | AF8: 1000 | AG8: 9307969.296 | AH8: 9773.367761 | AI8: 1000 | AJ8: 9773367.761
A9: Métodos de planificación | C9: un | D9: =1000*12 -> 12000 | E9: 1200 | F9: 14400000 | G9: 12600 | H9: 1200 | I9: 15120000 | J9: 13230 | K9: 1200 | L9: 15876000 | M9: 13891.5 | N9: 1200 | O9: 16669800 | P9: 14586.075 | Q9: 1200 | R9: 17503290 | S9: 15315.37875 | T9: 1200 | U9: 18378454.5 | V9: 16081.14769 | W9: 1200 | X9: 19297377.23 | Y9: 16885.20507 | Z9: 1200 | AA9: 20262246.09 | AB9: 17729.46533 | AC9: 1200 | AD9: 21275358.39 | AE9: 18615.93859 | AF9: 1200 | AG9: 22339126.31 | AH9: 19546.73552 | AI9: 1200 | AJ9: 23456082.63
F10: 0 | H10: 0 | I10: 0 | K10: 0 | L10: 0 | N10: 0 | O10: 0 | Q10: 0 | R10: 0 | T10: 0 | U10: 0 | W10: 0 | X10: 0 | Z10: 0 | AA10: 0 | AC10: 0 | AD10: 0 | AF10: 0 | AG10: 0 | AI10: 0 | AJ10: 0
A11: SUBTOTAL INSUMOS | F11: =SUM(F6:F10) -> 67200000 | I11: =SUM(I6:I10) -> 70560000 | L11: =SUM(L6:L10) -> 74088000 | O11: =SUM(O6:O10) -> 77792400 | R11: =SUM(R6:R10) -> 81682020 | U11: =SUM(U6:U10) -> 85766121 | X11: =SUM(X6:X10) -> 90054427.05 | AA11: =SUM(AA6:AA10) -> 94557148.4 | AD11: =SUM(AD6:AD10) -> 99285005.82 | AG11: =SUM(AG6:AG10) -> 104249256.1 | AJ11: =SUM(AJ6:AJ10) -> 109461718.9
A12: SABORIZANTES
A13: Sabor mandarina | C13: kg | F13: =D13*E13 -> 0 | H13: =E13 -> 0 | I13: =G13*H13 -> 0 | K13: =E13 -> 0 | L13: =J13*K13 -> 0 | N13: =E13 -> 0 | O13: =M13*N13 -> 0 | Q13: =E13 -> 0 | R13: =P13*Q13 -> 0 | T13: =K13 -> 0 | U13: =S13*T13 -> 0 | W13: =K13 -> 0 | X13: =V13*W13 -> 0 | Z13: =N13 -> 0 | AA13: =Y13*Z13 -> 0 | AC13: =Q13 -> 0 | AD13: =AB13*AC13 -> 0 | AF13: =T13 -> 0 | AG13: =AE13*AF13 -> 0 | AI13: =W13 -> 0 | AJ13: =AH13*AI13 -> 0
A14: Sabor limón | C14: kg | F14: 0 | H14: 0 | I14: 0 | K14: 0 | L14: 0 | N14: 0 | O14: 0 | Q14: 0 | R14: 0 | T14: 0 | U14: 0 | W14: 0 | X14: 0 | Z14: 0 | AA14: 0 | AC14: 0 | AD14: 0 | AF14: 0 | AG14: 0 | AI14: 0 | AJ14: 0
A15: Sabor Fresa | C15: kg | F15: 0 | H15: 0 | I15: 0 | K15: 0 | L15: 0 | N15: 0 | O15: 0 | Q15: 0 | R15: 0 | T15: 0 | U15: 0 | W15: 0 | X15: 0 | Z15: 0 | AA15: 0 | AC15: 0 | AD15: 0 | AF15: 0 | AG15: 0 | AI15: 0 | AJ15: 0
A16: Sabor manzana | C16: kg | F16: 0 | H16: 0 | I16: 0 | K16: 0 | L16: 0 | N16: 0 | O16: 0 | Q16: 0 | R16: 0 | T16: 0 | U16: 0 | W16: 0 | X16: 0 | Z16: 0 | AA16: 0 | AC16: 0 | AD16: 0 | AF16: 0 | AG16: 0 | AI16: 0 | AJ16: 0
A17: Sabor naranja | C17: kg | F17: 0 | H17: 0 | I17: 0 | K17: 0 | L17: 0 | N17: 0 | O17: 0 | Q17: 0 | R17: 0 | T17: 0 | U17: 0 | W17: 0 | X17: 0 | Z17: 0 | AA17: 0 | AC17: 0 | AD17: 0 | AF17: 0 | AG17: 0 | AI17: 0 | AJ17: 0
A18: Sabor mango | C18: kg | F18: 0 | H18: 0 | I18: 0 | K18: 0 | L18: 0 | N18: 0 | O18: 0 | Q18: 0 | R18: 0 | T18: 0 | U18: 0 | W18: 0 | X18: 0 | Z18: 0 | AA18: 0 | AC18: 0 | AD18: 0 | AF18: 0 | AG18: 0 | AI18: 0 | AJ18: 0
A19: SUBTOTAL SABORIZANTES | F19: =SUM(F13:F18) -> 0 | I19: =SUM(I13:I18) -> 0 | L19: =SUM(L13:L18) -> 0 | O19: =SUM(O13:O18) -> 0 | R19: =SUM(R13:R18) -> 0 | U19: =SUM(U13:U18) -> 0 | X19: =SUM(X13:X18) -> 0 | AA19: =SUM(AA13:AA18) -> 0 | AD19: =SUM(AD13:AD18) -> 0 | AG19: =SUM(AG13:AG18) -> 0 | AJ19: =SUM(AJ13:AJ18) -> 0
A20: COLORANTES
A21: Color limón | C21: kg | F21: =D21*E21 -> 0 | H21: =E21 -> 0 | I21: =G21*H21 -> 0 | K21: =E21 -> 0 | L21: =J21*K21 -> 0 | N21: =E21 -> 0 | O21: =M21*N21 -> 0 | Q21: =E21 -> 0 | R21: =P21*Q21 -> 0 | T21: =K21 -> 0 | U21: =S21*T21 -> 0 | W21: =K21 -> 0 | X21: =V21*W21 -> 0 | Z21: =N21 -> 0 | AA21: =Y21*Z21 -> 0 | AC21: =Q21 -> 0 | AD21: =AB21*AC21 -> 0 | AF21: =T21 -> 0 | AG21: =AE21*AF21 -> 0 | AI21: =W21 -> 0 | AJ21: =AH21*AI21 -> 0
A22: Color Mandarina | C22: kg | F22: 0 | H22: 0 | I22: 0 | K22: 0 | L22: 0 | N22: 0 | O22: 0 | Q22: 0 | R22: 0 | T22: 0 | U22: 0 | W22: 0 | X22: 0 | Z22: 0 | AA22: 0 | AC22: 0 | AD22: 0 | AF22: 0 | AG22: 0 | AI22: 0 | AJ22: 0
A23: Color Mango | C23: kg | F23: 0 | H23: 0 | I23: 0 | K23: 0 | L23: 0 | N23: 0 | O23: 0 | Q23: 0 | R23: 0 | T23: 0 | U23: 0 | W23: 0 | X23: 0 | Z23: 0 | AA23: 0 | AC23: 0 | AD23: 0 | AF23: 0 | AG23: 0 | AI23: 0 | AJ23: 0
A24: Color manzana | C24: kg | F24: 0 | H24: 0 | I24: 0 | K24: 0 | L24: 0 | N24: 0 | O24: 0 | Q24: 0 | R24: 0 | T24: 0 | U24: 0 | W24: 0 | X24: 0 | Z24: 0 | AA24: 0 | AC24: 0 | AD24: 0 | AF24: 0 | AG24: 0 | AI24: 0 | AJ24: 0
A25: Color fresa | C25: kg | F25: 0 | H25: 0 | I25: 0 | K25: 0 | L25: 0 | N25: 0 | O25: 0 | Q25: 0 | R25: 0 | T25: 0 | U25: 0 | W25: 0 | X25: 0 | Z25: 0 | AA25: 0 | AC25: 0 | AD25: 0 | AF25: 0 | AG25: 0 | AI25: 0 | AJ25: 0
A26: Color Naranja | C26: kg | F26: 0 | H26: 0 | I26: 0 | K26: 0 | L26: 0 | N26: 0 | O26: 0 | Q26: 0 | R26: 0 | T26: 0 | U26: 0 | W26: 0 | X26: 0 | Z26: 0 | AA26: 0 | AC26: 0 | AD26: 0 | AF26: 0 | AG26: 0 | AI26: 0 | AJ26: 0
A27: SUBTOTAL COLORANTES | F27: =SUM(F21:F26) -> 0 | I27: =SUM(I21:I26) -> 0 | L27: =SUM(L21:L26) -> 0 | O27: =SUM(O21:O26) -> 0 | R27: =SUM(R21:R26) -> 0 | U27: =SUM(U21:U26) -> 0 | X27: =SUM(X21:X26) -> 0 | AA27: =SUM(AA21:AA26) -> 0 | AD27: =SUM(AD21:AD26) -> 0 | AG27: =SUM(AG21:AG26) -> 0 | AJ27: =SUM(AJ21:AJ26) -> 0
A28: TOTAL DE INSUMOS | F28: =+F27+F19+F11 -> 67200000 | I28: =+I27+I19+I11 -> 70560000 | L28: =+L27+L19+L11 -> 74088000 | O28: =+O27+O19+O11 -> 77792400 | R28: =+R27+R19+R11 -> 81682020 | U28: =+U27+U19+U11 -> 85766121 | X28: =+X27+X19+X11 -> 90054427.05 | AA28: =+AA27+AA19+AA11 -> 94557148.4 | AD28: =+AD27+AD19+AD11 -> 99285005.82 | AG28: =+AG27+AG19+AG11 -> 104249256.1 | AJ28: =+AJ27+AJ19+AJ11 -> 109461718.9
A29: EMPAQUES
A30: Envse plástico 473 ml | C30: Unidad | F30: =D30*E30 -> 0 | H30: =E30 -> 0 | I30: =H30*G30 -> 0 | K30: =E30 -> 0 | L30: =J30*K30 -> 0 | N30: =E30 -> 0 | O30: =M30*N30 -> 0 | Q30: =E30 -> 0 | R30: =P30*Q30 -> 0 | T30: =K30 -> 0 | U30: =S30*T30 -> 0 | W30: =K30 -> 0 | X30: =V30*W30 -> 0 | Z30: =N30 -> 0 | AA30: =Y30*Z30 -> 0 | AC30: =Q30 -> 0 | AD30: =AB30*AC30 -> 0 | AF30: =T30 -> 0 | AG30: =AE30*AF30 -> 0 | AI30: =W30 -> 0 | AJ30: =AH30*AI30 -> 0
A31: Bolsa plástica de 500 ml | C31: Unidad | F31: 0 | H31: 0 | I31: =H31*G31 -> 0 | K31: =E31 -> 0 | L31: 0 | N31: 0 | O31: =M31*N31 -> 0 | Q31: =E31 -> 0 | R31: =P31*Q31 -> 0 | T31: 0 | U31: =S31*T31 -> 0 | W31: =K31 -> 0 | X31: 0 | Z31: =N31 -> 0 | AA31: 0 | AC31: =Q31 -> 0 | AD31: 0 | AF31: =T31 -> 0 | AG31: 0 | AI31: =W31 -> 0 | AJ31: 0
A32: Bolsa plásticas de 300 ml | C32: Unidad | F32: 0 | H32: 0 | I32: 0 | K32: 0 | L32: 0 | N32: 0 | O32: 0 | Q32: 0 | R32: 0 | T32: 0 | U32: 0 | W32: 0 | X32: 0 | Z32: 0 | AA32: 0 | AC32: 0 | AD32: 0 | AF32: 0 | AG32: 0 | AI32: 0 | AJ32: 0
A33: Etiqueta | C33: Unidad | F33: 0 | H33: 0 | I33: 0 | K33: 0 | L33: 0 | N33: 0 | O33: 0 | Q33: 0 | R33: 0 | T33: 0 | U33: 0 | W33: 0 | X33: 0 | Z33: 0 | AA33: 0 | AC33: 0 | AD33: 0 | AF33: 0 | AG33: 0 | AI33: 0 | AJ33: 0
A34: Empaque Bolsa de 500 ml | C34: Unidad | F34: 0 | H34: 0 | I34: 0 | K34: 0 | L34: 0 | N34: 0 | O34: 0 | Q34: 0 | R34: 0 | T34: 0 | U34: 0 | W34: 0 | X34: 0 | Z34: 0 | AA34: 0 | AC34: 0 | AD34: 0 | AF34: 0 | AG34: 0 | AI34: 0 | AJ34: 0
A35: Empaque Bolsa de 300 ml | C35: Unidad | F35: 0 | H35: 0 | I35: 0 | K35: 0 | L35: 0 | N35: 0 | O35: 0 | Q35: 0 | R35: 0 | T35: 0 | U35: 0 | W35: 0 | X35: 0 | Z35: 0 | AA35: 0 | AC35: 0 | AD35: 0 | AF35: 0 | AG35: 0 | AI35: 0 | AJ35: 0
A36: Caja empaque de envase | C36: Unidad | F36: 0 | H36: 0 | I36: 0 | K36: 0 | L36: 0 | N36: 0 | O36: 0 | Q36: 0 | R36: =P36*Q36 -> 0 | T36: 0 | U36: 0 | W36: 0 | X36: 0 | Z36: 0 | AA36: 0 | AC36: 0 | AD36: 0 | AF36: 0 | AG36: 0 | AI36: 0 | AJ36: 0
A37: Plástico caja de empaque | C37: Unidad | F37: 0 | H37: 0 | I37: 0 | K37: 0 | L37: 0 | N37: 0 | O37: 0 | Q37: 0 | R37: 0 | T37: 0 | U37: 0 | W37: 0 | X37: 0 | Z37: 0 | AA37: 0 | AC37: 0 | AD37: 0 | AF37: 0 | AG37: 0 | AI37: 0 | AJ37: 0
A38: SUBTOTAL EMPAQUES | F38: =SUM(F30:F37) -> 0 | I38: =SUM(I30:I37) -> 0 | L38: =SUM(L30:L37) -> 0 | O38: =SUM(O30:O37) -> 0 | R38: =SUM(R30:R37) -> 0 | U38: =SUM(U30:U37) -> 0 | X38: =SUM(X30:X37) -> 0 | AA38: =SUM(AA30:AA37) -> 0 | AD38: =SUM(AD30:AD37) -> 0 | AG38: =SUM(AG30:AG37) -> 0 | AJ38: =SUM(AJ30:AJ37) -> 0
A39: TOTAL DE MATERIA PRIMA DIRECTA | F39: =+F28+F38 -> 67200000 | I39: =+I28+I38 -> 70560000 | L39: =+L28+L38 -> 74088000 | O39: =+O28+O38 -> 77792400 | R39: =+R28+R38 -> 81682020 | U39: =+U28+U38 -> 85766121 | X39: =+X28+X38 -> 90054427.05 | AA39: =+AA28+AA38 -> 94557148.4 | AD39: =+AD28+AD38 -> 99285005.82 | AG39: =+AG28+AG38 -> 104249256.1 | AJ39: =+AJ28+AJ38 -> 109461718.9

Sheet Inversiones
A1: Cuadro 5.1
A2: COSTO MAQUINARIA Y EQUIPO DE OFICINA
A4: Maquinaria y equipo
A5: Artículo | B5: Cant. | C5: Valor unitario | D5: Valor total | E5: Vida útil
A6: Filtros Ametek 1/2 pulgada. | B6: 0 | C6: 134560 | D6: =B6*C6 -> 0 | E6: 10
A7: Planta de Ozono. | B7: 0 | C7: 765000 | D7: =B7*C7 -> 0 | E7: 10
A8: Esterilizador de bolsa y envase en acero quirúrgico. | B8: 0 | C8: 550000 | D8: 0 | E8: 10
A9: Tanque de almacenamiento con tapa. | B9: 0 | C9: 1000000 | D9: 0 | E9: 10
A10: Aspa con bandeja de acero inoxidable. | B10: 0 | C10: 200000 | D10: 0 | E10: 10
A11: Mesa con bandeja de acero de 0,75 m por 1,20 m. | B11: 0 | C11: 330000 | D11: 0 | E11: 10
A12: Selladora de bolsa plástica. | B12: 0 | C12: 200000 | D12: 0 | E12: 10
A13: Mesa para selladora. | B13: 0 | C13: 30000 | D13: 0 | E13: 10
A14: Motor de HP. | B14: 0 | C14: 160000 | D14: 0 | E14: 10
A15: Brazo del motor. | B15: 0 | C15: 30000 | D15: 0 | E15: 10
A16: Estibas de madera. | B16: 0 | C16: 12000 | D16: 0 | E16: 10
A17: Un metro de tubería en acero inoxidable 1/2". | B17: 0 | C17: 133334 | D17: 0 | E17: 10
A18: Balanza electrónica. | B18: 0 | C18: 200000 | D18: 0 | E18: 10
A19: Estantería metálica. | B19: 0 | C19: 200000 | D19: 0 | E19: 10
A20: Canastillas plásticas. | B20: 0 | C20: 13000 | D20: 0 | E20: 10
A21: Escalera metálica portátil. | B21: 0 | C21: 50000 | D21: 0 | E21: 10
A22: Dispensador de líquidos. | B22: 0 | C22: 300000 | D22: 0 | E22: 10
A23: Móvil (carreta) | B23: 0 | C23: 140000 | D23: 0 | E23: 10
A24: Selladora de tapa. | B24: 0 | C24: 300000 | D24: 0 | E24: 10
A25: Secador de manos infrarojo | B25: 1 | C25: 180000 | D25: 180000 | E25: 10
A26: Dispensador de jabón | B26: 1 | C26: 40000 | D26: 40000 | E26: 10
A27: Casillero de cuatro cajones. | B27: 1 | C27: 130000 | D27: 130000 | E27: 10
A28: TOTAL | D28: =SUM(D6:D27) -> 350000
A30: Equipo de oficina
A31: Detalle | B31: Cantidad | C31: Valor | D31: Valor | E31: Vida
C32: unitario | D32: total | E32: útil
A33: Escritorio con archivador y portateclado | B33: 4 | C33: 200000 | D33: =B33*C33 -> 800000 | E33: 5
A34: Silla de escritorio graduable | B34: 4 | C34: 120000 | D34: =B34*C34 -> 480000 | E34: 5
A35: Silla interlocutora | B35: 8 | C35: 100000 | D35: 800000 | E35: 5
A36: Módulo de recepción | B36: 1 | C36: 1200000 | D36: =B36*C36 -> 1200000 | E36: 5
A37: Sofá | B37: 1 | C37: 800000 | D37: 800000 | E37: 5
A38: Centro de mesa | B38: 1 | C38: 150000 | D38: 150000 | E38: 5
A39: Biblioteca de madera | B39: 1 | C39: 260000 | D39: 260000 | E39: 5
A40: Archivador con ruedas | B40: 1 | C40: 240000 | D40: 240000 | E40: 5
A41: Tableros acrílicos 2 mts x 120 cms | B41: 2 | C41: 120000 | D41: 240000 | E41: 5
A42: Computador | B42: 4 | C42: 1800000 | D42: 7200000 | E42: 5
A43: Software Office y Windows. | B43: 1 | C43: 1200000 | D43: =B43*C43 -> 1200000 | E43: 5
A44: Tablet | B44: 2 | C44: 1200000 | D44: =B44*C44 -> 2400000 | E44: 5
A45: Disco duro externo 1000 Gb | B45: 1 | C45: 180000 | D45: =B45*C45 -> 180000 | E45: 5
A46: Multifuncional HP | B46: 1 | C46: 310000 | D46: 310000 | E46: 5
A47: Calculadora casio | B47: 1 | C47: 32000 | D47: 32000 | E47: 5
A48: Teléfono inalámbrico Panasonic | B48: 1 | C48: 80000 | D48: 80000 | E48: 5
A49: Celular Nokia | B49: 2 | C49: 120000 | D49: 240000 | E49: 5
A50: Papelera en madera | B50: 3 | C50: 25000 | D50: 75000 | E50: 5
A51: Caneca en acero | B51: 2 | C51: 40000 | D51: 80000 | E51: 5
A52: Regulador de voltaje - estabilizador | B52: 1 | C52: 80000 | D52: 80000 | E52: 5
A53: Grapadora | B53: 2 | C53: 13000 | D53: 26000 | E53: 5
A54: Saca-ganchos | B54: 2 | C54: 2500 | D54: 5000 | E54: 5
A55: Extintor ABC multirpopósito 10 lb | B55: 1 | C55: 55000 | D55: 55000 | E55: 5
A56: Cafetera | B56: 1 | C56: 50000 | D56: 50000 | E56: 5
A57: TOTAL | D57: =SUM(D33:D56) -> 16983000
A59: Cuadro 8.3 GASTOS PREOPERATIVOS
A60: CONCEPTO | B60: VALOR
B61: (En pesos)
A62: GASTOS PRE-OPERATIVOS
A63: Estudio de factibilidad | B63: 3000000
A64: Contratación de personal | B64: 300000
A65: Capacitación de personal | B65: 600000
A66: Experimentación del producto | B66: 0
A67: Análisis de laboratorio | B67: 0
A68: SUBTOTAL GASTOS PRE-OPERATIVOS | B68: =SUM(B63:B67) -> 3900000
A69: ADECUACIÓN LOCATIVAS
A70: Instalaciones eléctricas | B70: 200000
A71: Construcción de plancha para tanque de almacenamiento. | B71: 0
A72: Instalaciones para recepción del agua. | B72: 0
A73: Adecuación de oficina | B73: 900000
A74: Red telefónica. | B74: 120000
A75: Curvatura de unión del piso con la pared. | B75: 0
A76: SUBTOTAL ADECUACIONES LOCATIVAS | B76: =SUM(B70:B75) -> 1220000
A77: GASTOS DE CONSTITUCIÓN
A78: Escritura pública. | B78: 0
A79: Registro en la oficina de instrumentos públicos. | B79: 0
A80: Permiso de uso de suelos. | B80: 0
A81: Registro sanitario (INVIMA) | B81: 0
A82: Instalaciones de equipos de producción | B82: 0
A83: Registro ante la Cámara de comercio | B83: 290000
A84: Registro Único Tributario - RUT | B84: 120000
A85: Registro Único Empresarial - RUE | B85: 80000
A86: SUBTOTAL GASTOS DE CONSTITUCIÓN | B86: =SUM(B78:B85) -> 490000
A87: TOTAL INVERSIÓN EN ACTIVOS INTANGIBLES | B87: =B86+B76+B68 -> 5610000
A89: NÓMINA ÁREA OPERACIONAL
A90: Cargo | B90: Salario básico | C90: Auxilio de transporte | D90: Total devengado | E90: Cesantías | F90: Intereses sobre cesantías | G90: Prima de servicios | H90: Vacaciones | I90: Aportes parafiscales | J90: Pensión | K90: Salud | L90: Riesgos profesionales | M90: Total nómina mensual | N90: Total nómina anual
A91: Factores | E91: 0.0833 | F91: 0.01 | G91: 0.0833 | H91: 0.0417 | I91: 0.09 | J91: 0.1013 | K91: 0.08 | L91: 0.01
A92: Profesional de apoyo | B92: 1800000 | C92: 0 | D92: =B92+C92 -> 1800000 | E92: =D92*$E$91 -> 149940 | F92: =E92*$F$91 -> 1499.4 | G92: =D92*$G$91 -> 149940 | H92: =B92*$H$91 -> 75060 | I92: =B92*$I$91 -> 162000 | J92: =B92*$J$91 -> 182340 | K92: =B92*$K$91 -> 144000 | L92: =B92*$L$91 -> 18000 | M92: =SUM(D92:L92) -> 2682779.4 | N92: =M92*12 -> 32193352.8
B93: 0 | C93: 0 | D93: =B93+C93 -> 0 | E93: =D93*$E$91 -> 0 | F93: =E93*$F$91 -> 0 | G93: =D93*$G$91 -> 0 | H93: =B93*$H$91 -> 0 | I93: =B93*$I$91 -> 0 | J93: =B93*$J$91 -> 0 | K93: =B93*$K$91 -> 0 | L93: =B93*$L$91 -> 0 | M93: =SUM(D93:L93) -> 0 | N93: =M93*12 -> 0
A94: TOTALES | B94: =SUM(B92:B93) -> 1800000 | C94: 0 | D94: 1800000 | E94: 149940 | F94: 1499.4 | G94: 149940 | H94: 75060 | I94: 162000 | J94: 182340 | K94: 144000 | L94: 18000 | M94: 2682779.4 | N94: 32193352.8
A96: NÓMINA ÁREA DE ADMINISTRACIÓN
A97: Cargo | B97: Salario básico | C97: Auxilio de transporte | D97: Total devengado | E97: Cesantías | F97: Intereses sobre cesantías | G97: Prima de servicios | H97: Vacaciones | I97: Aportes parafiscales | J97: Pensión | K97: Salud | L97: Riesgos profesionales | M97: Total nómina mensual | N97: Total nómina anual
A98: Factores | E98: 0.0833 | F98: 0.01 | G98: 0.0833 | H98: 0.0417 | I98: 0.05 | J98: 0.1013 | K98: 0.08 | L98: 0.01
A99: Gerente Proyecto | B99: 2500000 | C99: 0 | D99: =B99+C99 -> 2500000 | E99: =D99*$E$98 -> 208250 | F99: =E99*$F$98 -> 2082.5 | G99: =D99*$G$91 -> 208250 | H99: =D99*$H$91 -> 104250 | I99: =B99*$I$91 -> 225000 | J99: =B99*$J$91 -> 253250 | K99: =B99*$K$91 -> 200000 | L99: =B99*$L$91 -> 25000 | M99: =SUM(D99:L99) -> 3726082.5 | N99: =M99*12 -> 44712990
A100: Dirección Administrativa y Financiera | B100: 2100000 | C100: 0 | D100: 2100000 | E100: 174930 | F100: 1749.3 | G100: 174930 | H100: 87570 | I100: 189000 | J100: 212730 | K100: 168000 | L100: 21000 | M100: 3129909.3 | N100: 37558911.6
A101: Coordinador Programa | B101: 2100000 | C101: 0 | D101: 2100000 | E101: 174930 | F101: 1749.3 | G101: 174930 | H101: 87570 | I101: 189000 | J101: 212730 | K101: 168000 | L101: 21000 | M101: 3129909.3 | N101: 37558911.6
A102: Asistente Logístico | B102: 800000 | C102: 26400 | D102: 826400 | E102: 68839.12 | F102: 688.3912 | G102: 68839.12 | H102: 34460.88 | I102: 72000 | J102: 81040 | K102: 64000 | L102: 8000 | M102: 1224267.511 | N102: 14691210.13
A103: Técnico en Sistemas | B103: 900000 | C103: 26400 | D103: 926400 | E103: 77169.12 | F103: 771.6912 | G103: 77169.12 | H103: 38630.88 | I103: 81000 | J103: 91170 | K103: 72000 | L103: 9000 | M103: 1373310.811 | N103: 16479729.73
A104: Psicóloga | B104: 1800000 | C104: 0 | D104: 1800000 | E104: 149940 | F104: 1499.4 | G104: 149940 | H104: =B104*$H$91 -> 75060 | I104: 162000 | J104: 182340 | K104: 144000 | L104: 18000 | M104: 2682779.4 | N104: 32193352.8
A105: TOTALES | B105: =SUM(B99:B104) -> 10200000 | C105: 52800 | D105: 10252800 | E105: 854058.24 | F105: 8540.5824 | G105: 854058.24 | H105: 427541.76 | I105: 918000 | J105: 1033260 | K105: 816000 | L105: 102000 | M105: 15266258.82 | N105: 183195105.9
A107: GASTOS DE DOTACIÓN AREA ADMINISTRATIVA
A108: DOTACIÓN | B108: A Ñ O 1
B109: Cantidad | C109: Valor unitario | D109: Costos total
A110: Overoles | B110: 0 | C110: 26000 | D110: =B110*C110 -> 0
A111: Tapabocas | B111: 0 | C111: 2000 | D111: 0
A112: Guantes | B112: 0 | C112: 1200 | D112: 0
A113: Uniforme sec. | B113: 2 | C113: 50000 | D113: 100000
A114: Zapatos sec. | B114: 2 | C114: 40000 | D114: 80000
A115: Botas | B115: 0 | C115: 18500 | D115: 0
A116: TOTAL | D116: =SUM(D110:D115) -> 180000
A118: NÓMINA ÁREA DE VENTAS
A119: Cargo | B119: Salario básico | C119: Auxilio de transporte | D119: Total devengado | E119: Cesantías | F119: Intereses sobre cesantías | G119: Prima de servicios | H119: Vacaciones | I119: Aportes parafiscales | J119: Pensión | K119: Salud | L119: Riesgos profesionales | M119: Total nómina mensual | N119: Total nómina anual
A120: Factores | E120: 0.0833 | F120: 0.01 | G120: 0.0833 | H120: 0.0417 | I120: 0.09 | J120: 0.1013 | K120: 0.08 | L120: 0.01
A121: Subgerente de ventas | B121: 0 | D121: =B121+C121 -> 0 | E121: =D121*$E$98 -> 0 | F121: =E121*$F$98 -> 0 | G121: =D121*$G$91 -> 0 | H121: =B121*$H$91 -> 0 | I121: =B121*$I$91 -> 0 | J121: =B121*$J$91 -> 0 | K121: =B121*$K$91 -> 0 | L121: =B121*$L$91 -> 0 | M121: =SUM(D121:L121) -> 0 | N121: =M121*12 -> 0
A123: GASTOS DE DOTACIÓN AREA DE VENTAS
A124: DOTACIÓN | B124: A Ñ O 1
B125: Cantidad | C125: Valor unitario | D125: Costos total
A126: Overoles | B126: 0 | C126: 0 | D126: =B126*C126 -> 0
A127: Botas | B127: 0 | C127: 0 | D127: =B127*C127 -> 0
A128: TOTAL | D128: =SUM(D126:D127) -> 0
A130: COMISIÓN EN VENTAS
A131: AÑOS | B131: 0.02
A132: 2 | B132: 0
A133: 3 | B133: 0
A134: 4 | B134: 0
A135: 5 | B135: 0
A136: 6 | B136: 0
A138: GASTOS DE PUBLICIDAD
A139: MEDIO | B139: A Ñ O 1
B140: COSTO UNITARIO | C140: CANTIDAD | D140: COSTO TOTAL
A141: Tarjetas de presentación x 1000 | B141: 45000 | C141: 20 | D141: =B141*C141 -> 900000
A142: Carpetas institucionales x 100 | B142: 50000 | C142: 30 | D142: =B142*C142 -> 1500000
A143: Hojas membreteadas x 500 | B143: 20000 | C143: 80 | D143: 1600000
A144: Pendones 150x250 | B144: 150000 | C144: 2 | D144: 300000
A145: Pendones 80x120 | B145: 100000 | C145: 2 | D145: 200000
A146: Aviso al exterior | B146: 500000 | C146: 1 | D146: 500000
A147: Grabación de jingle | B147: 80000 | C147: 4 | D147: 320000
A148: Flayers (dos tintas) x 1000 | B148: 30000 | C148: 40 | D148: =B148*C148 -> 1200000
A149: TOTAL | D149: =SUM(D141:D148) -> 6520000
A151: PRESUPUESTO DE PROMOCIÓN EN VENTAS
A152: Concepto | B152: Año 2 | E152: Año 3 | H152: Año 4 | K152: Año 5 | N152: Año 6
B153: Cantidad | C153: Valor Unitario | D153: Costo total | E153: Cantidad | F153: Valor Unitario | G153: Costo total | H153: Cantidad | I153: Valor Unitario | J153: Costo total | K153: Cantidad | L153: Valor Unitario | M153: Costo total | N153: Cantidad | O153: Valor Unitario | P153: Costo total
A155: Maletines
A156: Biscicleteros
A157: Bolso Canguro
A158: Llaveros
A159: PROMOCIÓN BEBIDAS
A160: Envase 473 ml
A161: Bolsa 500 ml
A162: Bolsa 300 ml
A163: DEGUSTACIÓN
A164: Bolsa 300 ml
A165: OBSEQUIO DE BEBIDAS
A166: Envase 473 ml
A167: Bolsa 500 ml
A168: Bolsa 300 ml
A169: TOTAL | D169: =SUM(D155:D168) -> 0 | G169: =SUM(G155:G168) -> 0 | J169: =SUM(J155:J168) -> 0 | M169: =SUM(M155:M168) -> 0 | P169: =SUM(P155:P168) -> 0
A173: RESUMEN DE GASTOS DE ADMINISTRACIÓN, VENTAS Y DISTRIBUCIÓN
A174: GASTOS DE ADMINISTRACIÓN | B174: AÑO 2 | C174: AÑO 3 | D174: AÑO 4 | E174: AÑO 5 | F174: AÑO 6 | G174: AÑO 7 | H174: AÑO 8 | I174: AÑO 9 | J174: AÑO 10 | K174: AÑO 11
A175: Nómina | B175: =$N$94 -> 32193352.8 | C175: =$N$94 -> 32193352.8 | D175: 32193352.8 | E175: 32193352.8 | F175: 32193352.8 | G175: 32193352.8 | H175: 32193352.8 | I175: 32193352.8 | J175: 32193352.8 | K175: 32193352.8
A176: Gastos de dotación | B176: =$D$116 -> 180000 | C176: 180000 | D176: 180000 | E176: 180000 | F176: 180000 | G176: 180000 | H176: 180000 | I176: 180000 | J176: 180000 | K176: 180000
A177: Honorarios | B177: =550000*12 -> 6600000 | C177: =550000*12 -> 6600000 | D177: 6600000 | E177: 6600000 | F177: 6600000 | G177: 6600000 | H177: 6600000 | I177: 6600000 | J177: 6600000 | K177: 6600000
A178: Gastos de arrendamiento | B178: =165000*12 -> 1980000 | C178: =165000*12 -> 1980000 | D178: 1980000 | E178: 1980000 | F178: 1980000 | G178: 1980000 | H178: 1980000 | I178: 1980000 | J178: 1980000 | K178: 1980000
A179: Impuesto de cámara de comercio | B179: 230000 | C179: 230000 | D179: 230000 | E179: 230000 | F179: 230000 | G179: 230001 | H179: 230002 | I179: 230002 | J179: 230002 | K179: 230002
A180: Servicio públicos | B180: =260000*12 -> 3120000 | C180: =260000*12 -> 3120000 | D180: 3120000 | E180: 3120000 | F180: 3120000 | G180: 3120000 | H180: 3120000 | I180: 3120000 | J180: 3120000 | K180: 3120000
A181: Útiles y papelería | B181: =300000*12 -> 3600000 | C181: =300000*12 -> 3600000 | D181: 3600000 | E181: 3600000 | F181: 3600000 | G181: 3600000 | H181: 3600000 | I181: 3600000 | J181: 3600000 | K181: 3600000
A182: Servicio de alarma | B182: =70000*12 -> 840000 | C182: =70000*12 -> 840000 | D182: 840000 | E182: 840000 | F182: 840000 | G182: 840000 | H182: 840000 | I182: 840000 | J182: 840000 | K182: 840000
A183: Implementos de aseo | B183: =80000*12 -> 960000 | C183: =80000*12 -> 960000 | D183: 960000 | E183: 960000 | F183: 960000 | G183: 960000 | H183: 960000 | I183: 960000 | J183: 960000 | K183: 960000
A184: SUBTOTAL GASTOS DE ADMINISTRACIÓN | B184: =SUM(B175:B183) -> 49703352.8 | C184: 49703352.8 | D184: 49703352.8 | E184: 49703352.8 | F184: 49703352.8 | G184: 49703353.8 | H184: 49703354.8 | I184: =SUM(I175:I183) -> 49703354.8 | J184: 49703354.8 | K184: 49703354.8
A185: GASTOS EN VENTAS
A186: Nómina | B186: =$N$121 -> 0 | C186: 0 | D186: 0 | E186: 0 | F186: 0 | G186: 0 | H186: 0 | I186: 0 | J186: 0 | K186: 0
A187: Comisión de dos vendedores | B187: =B132 -> 0 | C187: =B133 -> 0 | D187: =B134 -> 0 | E187: =B135 -> 0 | F187: =B136 -> 0 | G187: =C136 -> 0 | H187: =D136 -> 0 | I187: =E136 -> 0 | J187: 0 | K187: 0
A188: Gastos de publicidad | B188: =D149 -> 6520000 | C188: =B188 -> 6520000 | D188: 6520000 | E188: 6520000 | F188: 6520000 | G188: 6520000 | H188: 6520000 | I188: =H188 -> 6520000 | J188: =I188 -> 6520000 | K188: =J188 -> 6520000
A189: Gastos de promoción | B189: =D169 -> 0 | C189: =G169 -> 0 | D189: =J169 -> 0 | E189: =M169 -> 0 | F189: =P169 -> 0 | G189: =Q169 -> 0 | H189: =R169 -> 0 | I189: =S169 -> 0 | J189: 0 | K189: 0
A190: SUBTOTAL GASTOS EN VENTAS | B190: =SUM(B186:B189) -> 6520000 | C190: 6520000 | D190: 6520000 | E190: 6520000 | F190: 6520000 | G190: 6520000 | H190: 6520000 | I190: =SUM(I186:I189) -> 6520000 | J190: 6520000 | K190: 6520000
A191: GASTOS GENERALES DE DISTRIBUCIÓN
A192: Imprevistos (gastos de transporte) | B192: =400000*12 -> 4800000 | C192: =400000*12 -> 4800000 | D192: 4800000 | E192: 4800000 | F192: 4800000 | G192: 4800000 | H192: 4800000 | I192: 4800000 | J192: 4800000 | K192: 4800000
A193: SUBTOTAL GASTOS DE DISTRIBUCIÓN | B193: =B192 -> 4800000 | C193: 4800000 | D193: 4800000 | E193: 4800000 | F193: 4800000 | G193: 4800000 | H193: 4800000 | I193: =I192 -> 4800000 | J193: 4800000 | K193: 4800000
A195: GASTOS GENERALES DE FABRICACION
A196: DETALLE | B196: AÑO 2 | C196: AÑO 3 | D196: AÑO 4 | E196: AÑO 5 | F196: AÑO 6 | G196: AÑO 7 | H196: AÑO 8 | I196: AÑO 9 | J196: AÑO 10 | K196: AÑO 11
A197: Servicio Público | B197: 0 | C197: 0 | D197: 0 | E197: 0 | F197: 0 | G197: 0 | H197: 0 | I197: 0 | J197: 0 | K197: 0
A198: Mantenimiento | B198: 0 | C198: 0 | D198: 0 | E198: 0 | F198: 0 | G198: 0 | H198: 0 | I198: 0 | J198: 0 | K198: 0
A199: Gastos de Arrendamientos | B199: 0 | C199: 0 | D199: 0 | E199: 0 | F199: 0 | G199: 0 | H199: 0 | I199: 0 | J199: 0 | K199: 0
A200: SUBTOTAL COSTOS INDIRECTOS | B200: =SUM(B197:B199) -> 0 | C200: 0 | D200: 0 | E200: 0 | F200: 0 | G200: 0 | H200: 0 | I200: =SUM(I197:I199) -> 0 | J200: 0 | K200: 0

Sheet Hoja7
B1: VARIACIÓN | C1: PRECIO PROMEDIO | D1: TIR | E1: VP | F1: B/C | G1: TIO
B2: 1 | C2: =Variables!B22 -> 34419.97 | D2: =Indicadores!B61 -> 0.6042639916 | E2: =+Indicadores!B60 -> 53150653.12 | F2: =+Indicadores!B65 -> 4.106517278 | G2: =+Indicadores!C48 -> 0.21
B4: ANALISIS DE SENSIBILIDAD - VARIACION PRECIO UNITARIO DE VENTAS
A26: VARIACION | B26: %DE VARIACION | C26: PRECIO PROMEDIO | D26: TIR | E26: VPN | F26: B/C | G26: TIO
A27: 0.78 | B27: 0.22 | C27: 20941.1124 | D27: -0.2157526965 | E27: -79688371.44 | F27: -3.34915042 | G27: 0.21
A28: 0.79 | B28: 0.21 | C28: 21481.5062 | D28: -0.1792858866 | E28: -73586788.87 | F28: -3.140796507 | G28: 0.21
A29: 0.8 | B29: 0.2 | C29: 22028.784 | D29: -0.1448786554 | E29: -67485206.3 | F29: -2.921974584 | G29: 0.21
A30: 0.81 | B30: 0.19 | C30: 22582.9458 | D30: -0.1119693631 | E30: -61383623.73 | F30: -2.703152661 | G30: 0.21
A31: 0.82 | B31: 0.18 | C31: 23143.9916 | D31: -0.08011327623 | E31: -55282041.15 | F31: -2.484330738 | G31: 0.21
A32: 0.83 | B32: 0.17 | C32: 23711.9214 | D32: -0.04894582097 | E32: -49180458.58 | F32: -2.265508814 | G32: 0.21
A33: 0.84 | B33: 0.16 | C33: 24286.7352 | D33: -0.01815717791 | E33: -43078876.01 | F33: -2.046686891 | G33: 0.21
A34: 0.85 | B34: 0.15 | C34: 24868.433 | D34: 0.01252575444 | E34: -36977293.44 | F34: -1.827864968 | G34: 0.21
A35: 0.86 | B35: 0.14 | C35: 25457.0062 | D35: 0.04335257417 | E35: -30875710.87 | F35: -1.583940294 | G35: 0.21
A36: 0.87 | B36: 0.13 | C36: 26052.4719 | D36: 0.07455939645 | E36: -24774128.3 | F36: -1.285361923 | G36: 0.21
A37: 0.88 | B37: 0.12 | C37: 26654.8216 | D37: 0.1063767194 | E37: -18672545.73 | F37: -0.9867835528 | G37: 0.21
A38: 0.89 | B38: 0.11 | C38: 27264.0553 | D38: 0.1390357861 | E38: -12570963.16 | F38: -0.6882051824 | G38: 0.21
A39: 0.9 | B39: 0.1 | C39: 27880.173 | D39: 0.1727738206 | E39: -6469380.587 | F39: -0.3848660906 | G39: 0.21
A40: 0.91 | B40: 0.09 | C40: 28503.1747 | D40: 0.2078383045 | E40: -367798.0158 | F40: -0.01016282278 | G40: 0.21
A41: 0.92 | B41: 0.08 | C41: 29133.0604 | D41: 0.2444902774 | E41: 5733784.555 | F41: 0.4430027471 | G41: 0.21
A42: 0.93 | B42: 0.07 | C42: 29769.8301 | D42: 0.2830064686 | E42: 11835367.13 | F42: 0.9144222457 | G42: 0.21
A43: 0.94 | B43: 0.06 | C43: 30413.4838 | D43: 0.3236798977 | E43: 17936949.7 | F43: 1.385841744 | G43: 0.21
A44: 0.95 | B44: 0.05 | C44: 31064.0215 | D44: 0.3668184242 | E44: 24038532.27 | F44: 1.857261243 | G44: 0.21
A45: 0.96 | B45: 0.04 | C45: 31721.4432 | D45: 0.4127406363 | E45: 30140114.84 | F45: 2.328680742 | G45: 0.21
A46: 0.97 | B46: 0.03 | C46: 32385.7489 | D46: 0.4603258531 | E46: 36132682.27 | F46: 2.79167753 | G46: 0.21
A47: 0.98 | B47: 0.02 | C47: 33056.9386 | D47: 0.5061821115 | E47: 41805339.22 | F47: 3.229957446 | G47: 0.21
A48: 0.99 | B48: 0.01 | C48: 33735.0123 | D48: 0.5541398008 | E48: 47477996.17 | F48: 3.668237362 | G48: 0.21
A49: 1 | B49: -6.661338148e-16 | C49: 34419.97 | D49: 0.6042639916 | E49: 53150653.12 | F49: 4.106517278 | G49: 0.21

Sheet Hoja8
B1: VARIAICON | C1: UNIDAD PROMEDIO | D1: TIR | E1: VP | F1: B/C | G1: TIO
B2: 1 | C2: =+Variables!B13 -> 7800 | D2: =+Indicadores!B61 -> 0.6042639916 | E2: =+Indicadores!B60 -> 53150653.12 | F2: =+Indicadores!B65 -> 4.106517278 | G2: =+Indicadores!C48 -> 0.21
B4: ANALISIS DE SENSIBILIDAD - VARIACION EN UNIDADES DE PRODUCCION
A26: VARIACION | B26: %DE VARIACION | C26: PRODUCCION PROIMEDIO EN UNIDADES | D26: TIR | E26: VPN | F26: B/C | G26: TIO
A27: 0.75
A28: 0.76
A29: 0.77
A30: 0.78
A31: 0.79
A32: 0.8
A33: 0.81
A34: 0.82
A35: 0.83
A36: 0.84
A37: 0.85
A38: 0.86
A39: 0.87
A40: 0.88
A41: 0.89
A42: 0.9
A43: 0.91
A44: 0.92
A45: 0.93
A46: 0.94
A47: 0.95
A48: 0.96
A49: 0.97
A50: 0.98
A51: 0.99
A52: 1

Sheet cargos
A2: PERSONAL TÉCNICO REQUERIDO Descripción de cargos
A3: Cargo | B3: Funciones | C3: Herramientas | D3: Requisitos
A4: Director General | B4: Planificar, organizar, coordinar, controlar, liderar, motivar, comunicar. | C4: Capacidad de integrar los esfuerzos internos y externos, para ejecutar las actividades con éxito. | D4: Profesional universitario con conocimientos y habilidades en la ejecución de proyectos.
A5: Coordinador General | B5: Coordinar y supervisar actividades, recursos, equipos de información y presentar informes a la gerencia. | C5: Capacidad administrativa. Habilidades de comunicación. | D5: Profesional universitario con conocimientos en programación del proyecto inicial. Conocimiento paquete informático (Internet, Excel, Word, Power Point y Acces), estados financieros y administrativos de la empresa
A6: Área de Logística | B6: Coordinar la planificación de actividades | C6: Capacidad de organización y comunicación. | D6: Técnico o profesional universitario con conocimientos de administración e informática.
A7: Área de Personal | B7: Planificar plantillas, seleccionar y formar el personal. Describir las funciones. | C7: Capacidad administrativa de personal. Habilidades de comunicación. | D7: Profesional universitario con conocimientos en administración, salud ocupacional e informática.
A8: Comunicaciones | B8: Gestión de canales de publicación. | C8: Capacidad de relaciones sociales. | D8: Técnico o profesional universitario con conocimientos en marketing y web.
A9: Asesor | B9: Recopilar y analizar la información. Identificar las necesidades. Dirigir y supervisar las actividades. | C9: Capacidad de implementación de programas y proyectos. Capacidad de comunicación. | D9: Profesional universitario con conocimientos en salud y comercialización.
A10: Profesional de apoyo | B10: Diseñar estrategias, orientar, promover la participación, innovar y motivar al grupo. | C10: Capacidad de liderazgo. Conocimientos en el ámbito social. Habilidades de comunicación. | D10: Profesional universitario en afines a la psicología y/o trabajador social. Conocimiento paquete informático.
A15: PERSONAL PARA LA EJECUCIÓN DEL PROYECTO Descripción de cargos
A16: Cargo | B16: Funciones | C16: Requisitos
A17: Socios | B17: Tomar decisiones, máxima autoridad de la empresa. | C17: Socios accionistas que aporten capital a la empresa.
A18: Gerente General | B18: Planificar, organizar, coordinar, controlar, liderar, motivar, comunicar. | C18: Profesional universitario con conocimientos y habilidades en la ejecución de proyectos, y administración de empresas o afines.
A19: Asesor Logístico | B19: Planificar las actividades. Gestión directa con organizaciones y/o instituciones. | C19: Técnico o profesional universitario con conocimientos de administración e informática.
A20: Asesor Financiero | B20: Planificar plantillas, seleccionar y formar el personal. Describir las funciones. Contrato de arrendamientos. | C20: Profesional universitario con conocimientos en administración, salud ocupacional e informática.
A21: Asesor Técnico | B21: Implementar la instalación de equipos. Capacitar personal. | C21: Técnico o profesional universitario con conocimientos informáticos.
A26: PERSONAL ADMINISTRATIVO OPERACIÓN DEL PROYECTO
A27: Cargo | B27: Funciones | C27: Herramientas | D27: Requisitos
A28: Gerente Proyecto | B28: 1. Planear, diseñar y organizar el proyecto 2. Dirigir y controlar actividades del personal 3. Ejercer el liderazgo y velar por el logro de objetivos 4. Toma de decisiones | C28: 1. Computador 2. Celular | D28: 1. Título Universitario. 2. Tres años de experiencia
A29: Dirección Administrativa y Financiera | B29: 1. Análisis de los aspectos financieros, cuentas y flujos de efectivo 2. Control de costos 3. Negociación con clientes y proveedores | C29: 1. Computador | D29: 1. Título Universitario. 2. Tres años de experiencia
A30: Coordinador Programa | B30: 1. Planear, organizar y coordinar las actividades 2. Apoyar y realizar seguimiento a los procesos 3. Evaluar cada uno de los procesos de actividades 4. Presentar informe de seguimiento | C30: 1. Computador | D30: 1. Título Universitario. 2. Dos años de experiencia
A31: Asistente Logístico | B31: 1. Coordinar la logística para el desarrollo de las actividades 2. Establecer contacto con Instituciones 3. Seguimiento de las actividades realizadas | C31: 1. Computador 2. Teléfono 3. Formatos 4. Expresarse claramente de forma escrita y verbal | D31: 1. Título Universitario o Tecnológico 2. Experiencia en manejo de información y datos, al menos 1 año.
A32: Profesional de Apoyo SSR | B32: 1. Evaluar las necesidades del cliente y determinar los recursos necesarios 2. Acompañar y evaluar a los integrantes 3. Establecer canales de comunicación 5. Desarrollar programas de prevención | C32: 1. Conocimiento de las determinantes de salud 2. Expresarse claramente y facilidad de comunicación | D32: 1. Título Universitario 2. Conocimiento en salud sexual y reproductiva 3. De uno a dos años de experiencia
A33: Profesional en Psicóloga | B33: 1. Intervención ante las necesidades del adolescente y demás integrantes 2. Evaluar y valorar las capacidades personales, grupales e institucionales 3. Proponer o realizar intervenciones al desarrollo de las actividades | C33: 1. Conocimiento de las determinantes de salud 2. Expresarse claramente y facilidad de comunicación | D33: 1. Título Universitario en Psicología 2. Conocimiento en salud sexual y reproductiva 3. Dos años de experiencia
A34: Técnico en Sistemas | B34: 1. Administración de sistemas y soporte 2. Instalación, configuración y mantenimiento de servicios como correo electrónico, Web, FTP | C34: 1. Computador 2. Herramientas de HW y SW | D34: 1. Título Universitario reciente 2. Conocimiento en redes y desarrollo web 3. Mínimo 1 año de experiencia

Sheet costo personal
A1: PERSONAL TÉCNICO REQUERIDO
A2: COSTOS
A3: Cargo | B3: Nº personas | C3: Costo mensual | D3: Total mensual | E3: Total anual
A4: Director General | B4: 1 | C4: 2500000 | D4: =+C4*B4 -> 2500000 | E4: =+D4*12 -> 30000000
A5: Coordinador General | B5: 1 | C5: 2100000 | D5: 2100000 | E5: =+D5*12 -> 25200000
A6: Área de Personal | B6: 1 | C6: 2100000 | D6: 2100000 | E6: 25200000
A7: Área de LogístIca | B7: 1 | C7: 800000 | D7: 800000 | E7: 9600000
A8: Profesional de Apoyo | B8: 2 | C8: 1800000 | D8: 3600000 | E8: 43200000
A9: Comunicaciones | B9: 1 | C9: 900000 | D9: 900000 | E9: 10800000
A10: Asesor | B10: 2 | C10: 1800000 | D10: 3600000 | E10: 43200000
A11: TOTAL | D11: =SUM(D4:D10) -> 15600000 | E11: =SUM(E4:E10) -> 187200000
A16: PERSONAL EJECUCIÓN DEL PROYECTO
A17: COSTOS
A18: Cargo | B18: Nº personas | C18: Costo mensual | D18: Total mensual | E18: Total anual
A19: Director General | B19: 1 | C19: 2500000 | D19: =+C19*B19 -> 2500000 | E19: =+D19*12 -> 30000000
A20: Asesor Logístico | B20: 1 | C20: 800000 | D20: 800000 | E20: =+D20*12 -> 9600000
A21: Asesor Financiero | B21: 1 | C21: 2100000 | D21: 2100000 | E21: 25200000
A22: Asesor Técnico | B22: 1 | C22: 900000 | D22: 900000 | E22: 10800000
A23: TOTAL | D23: =SUM(D19:D22) -> 6300000 | E23: =SUM(E19:E22) -> 75600000
A28: PERSONAL ADMINISTRATIVO REQUERIDO
A29: COSTOS
A30: Cargo | B30: Nº personas | C30: Costo mensual | D30: Total mensual | E30: Total anual
A31: Gerente Proyecto | B31: 1 | C31: 2500000 | D31: 2500000 | E31: 30000000
A32: Dirección Administrativa y Financiera | B32: 1 | C32: 2100000 | D32: 2100000 | E32: 25200000
A33: Coordinador Programa | B33: 1 | C33: 2100000 | D33: 2100000 | E33: 25200000
A34: Asistente Logístico | B34: 1 | C34: 815000 | D34: 815000 | E34: 9780000
A35: Profesional de Apoyo | B35: 2 | C35: 1810000 | D35: 3620000 | E35: 43440000
A36: Técnico en Sistemas | B36: 1 | C36: 900000 | D36: 900000 | E36: 10800000
A37: Psicóloga | B37: 2 | C37: 1810000 | D37: 3620000 | E37: 43440000
A38: TOTAL | D38: 15655000 | E38: 187860000

Sheet arrendamiento
A1: INSTALACIONES REQUERIDAS
A2: COSTOS
A3: Local | B3: Unidad | C3: Cantidad | D3: Costo unitario | E3: Costo total
A4: Arrendamiento | B4: 1 | C4: 12 | D4: =Inversiones!B178 -> 1980000 | E4: =+D4*12 -> 23760000
A5: TOTAL | D5: =SUM(D4:D4) -> 1980000 | E5: =SUM(E4:E4) -> 23760000

Sheet actividades
A1: ACTIVIDADES, DURACIÓN Y PREDECESORAS
A2: N° | B2: Actividad | C2: Duración | D2: Predecesoras
A3: 1 | B3: EMPRESA DE CONSULTORÍA EN SALUD SEXUAL Y REPRODUCTIVA | C3: 238 días
A4: 2 | B4: Establecimiento de la organización encargada de la ejecución del proyecto | C4: 120 días
A5: 3 | B5: Convocatorias | C5: 30 días
A6: 4 | B6: Entrevista y selección de personal | C6: 30 días | D6: 3
A7: 5 | B7: Contratación de personal | C7: 30 días | D7: 4
A8: 6 | B8: Capacitación | C8: 30 días | D8: 5
A9: 7 | B9: Elección de la tecnología | C9: 75 días
A10: 8 | B10: Cotizaciones de equipos y enseres | C10: 30 días | D10: 3
A11: 9 | B11: Cotización publicidad | C11: 20 días | D11: 8
A12: 10 | B12: Selección proveedor | C12: 5 días | D12: 8;9
A13: 11 | B13: Estudio y decisión final | C13: 20 días | D13: 10
A14: 12 | B14: Estudios técnicos detallados de equipos | C14: 65 días
A15: 13 | B15: Presupuesto | C15: 5 días | D15: 8
A16: 14 | B16: Identificación de recursos | C16: 5 días | D16: 11;13
A17: 15 | B17: Diseño de adecuaciones | C17: 5 días | D17: 14
A18: 16 | B18: Instalación de muebles y redes | C18: 10 días | D18: 15
A19: 17 | B19: Evaluación de propuestas y adjudicación de contratos | C19: 23 días
A20: 18 | B20: Contratos institucionales | C20: 3 días | D20: 11
A21: 19 | B21: Contratos de equipos | C21: 3 días | D21: 16
A22: 20 | B22: Financiación del proyecto | C22: 58 días
A23: 21 | B23: Solicitud crédito bancario | C23: 20 días | D23: 11;15
A24: 22 | B24: Donaciones institucionales | C24: 30 días | D24: 21
A25: 23 | B25: Aportes socios | C25: 8 días | D25: 21;22
A26: 24 | B26: Arreglos sobre suministros | C26: 38 días
A27: 25 | B27: Suministro de material | C27: 10 días | D27: 23
A28: 26 | B28: Generar publicidad | C28: 20 días | D28: 25
A29: 27 | B29: Entrega volantes | C29: 8 días | D29: 26
A30: 28 | B30: Redes sociales | C30: 5 días | D30: 26
A31: 29 | B31: Comercialización previa a la producción | C31: 65 días
A32: 30 | B32: Identificación de recursos | C32: 15 días | D32: 23
A33: 31 | B33: Conocer las necesidades del usuario | C33: 20 días | D33: 30
A34: 32 | B34: Búsqueda de instituciones | C34: 30 días | D34: 31
A35: 33 | B35: Aprobaciones requeridas | C35: 20 días
A36: 34 | B36: Permiso de la Alcaldía | C36: 20 días | D36: 11

Sheet predecesoras
A1: MATRIZ DE PREDECESORAS
A2: N° | B2: Actividad / Predecesoras | C2: 1 | D2: 2 | E2: 3 | F2: 4 | G2: 5 | H2: 6 | I2: 7 | J2: 8 | K2: 9 | L2: 10 | M2: 11 | N2: 12 | O2: 13 | P2: 14 | Q2: 15 | R2: 16 | S2: 17 | T2: 18 | U2: 19 | V2: 20 | W2: 21 | X2: 22 | Y2: 23 | Z2: 24 | AA2: 25 | AB2: 26 | AC2: 27 | AD2: 28 | AE2: 29 | AF2: 30 | AG2: 31 | AH2: 32 | AI2: 33 | AJ2: 34
A3: 1 | B3: PROYECTO
A4: 2 | B4: Establecimiento de la organización…
A5: 3 | B5: Convocatorias
A6: 4 | B6: Entrevista y selección de personal | E6: X
A7: 5 | B7: Contratación de personal | F7: X
A8: 6 | B8: Capacitación | G8: X
A9: 7 | B9: Elección de la tecnología
A10: 8 | B10: Cotizaciones de equipos y enseres | E10: X
A11: 9 | B11: Cotización publicidad | J11: X
A12: 10 | B12: Selección proveedor | J12: X | K12: X
A13: 11 | B13: Estudio y decisión final | L13: X
A14: 12 | B14: Estudios técnicos detallados de equipos
A15: 13 | B15: Presupuesto | J15: X
A16: 14 | B16: Identificación de recursos | M16: X | O16: X
A17: 15 | B17: Diseño de adecuaciones | P17: X
A18: 16 | B18: Instalación de muebles y redes | Q18: X
A19: 17 | B19: Evaluación de propuestas y adjudicaci…
A20: 18 | B20: Contratos institucionales | M20: X
A21: 19 | B21: Contratos de equipos | R21: X
A22: 20 | B22: Financiación del proyecto
A23: 21 | B23: Solicitud crédito bancario | M23: X | Q23: X
A24: 22 | B24: Donaciones institucionales | W24: X
A25: 23 | B25: Aportes socios | W25: X | X25: X
A26: 24 | B26: Arreglos sobre suministros
A27: 25 | B27: Suministro de material | Y27: X
A28: 26 | B28: Generar publicidad | AA28: X
A29: 27 | B29: Entrega volantes | AB29: X
A30: 28 | B30: Redes sociales | AB30: X
A31: 29 | B31: Comercialización previa a la producción
A32: 30 | B32: Identificación de recursos | Y32: X
A33: 31 | B33: Conocer las necesidades del usuario | AF33: X
A34: 32 | B34: Búsqueda de instituciones | AG34: X
A35: 33 | B35: Aprobaciones requeridas
A36: 34 | B36: Permiso de la Alcaldía | M36: X

Sheet tabla amortización
A1: crédito | B1: 10000000
A2: tasa interés | B2: 0.24 | C2: anual
A3: plazo | B3: 6 | C3: años
A4: cuota | B4: =PMT(B2,B3,-B1,,) -> 3310741.602 | C4: mensual
A6: Cuadro 10.3
A7: TABLA DE AMORTIZACIÓN
A8: PERIODO | B8: SALDO INICIAL | C8: CUOTA | D8: INTERESES | E8: AMORTIZACIÓN | F8: SALDO
A9: 1 | B9: =B1 -> 10000000 | C9: =B4 -> 3310741.602 | D9: =B9*$B$2 -> 2400000 | E9: =C9-D9 -> 910741.6016 | F9: =+B9-E9 -> 9089258.398
A10: 2 | B10: =F9 -> 9089258.398 | C10: =C9 -> 3310741.602 | D10: =B10*$B$2 -> 2181422.016 | E10: 1129319.586 | F10: 7959938.813
A11: 3 | B11: 7959938.813 | C11: 3310741.602 | D11: 1910385.315 | E11: 1400356.287 | F11: 6559582.526
A12: 4 | B12: 6559582.526 | C12: 3310741.602 | D12: 1574299.806 | E12: 1736441.795 | F12: 4823140.731
A13: 5 | B13: 4823140.731 | C13: 3310741.602 | D13: 1157553.775 | E13: 2153187.826 | F13: 2669952.904
A14: 6 | B14: 2669952.904 | C14: 3310741.602 | D14: 640788.6971 | E14: 2669952.904 | F14: 0

Sheet diag. flujo
C4: =Indicadores!D$37 -> 11862737.75 | D4: =Indicadores!E$37 -> 13297160.07 | E4: =Indicadores!F$37 -> 11438354.42 | F4: =Indicadores!G$37 -> 20275451.61 | G4: =Indicadores!H$37 -> 21843048.33 | H4: =Indicadores!I$37 -> 35964636.02 | I4: =Indicadores!J$37 -> 36513725.21 | J4: =Indicadores!K$37 -> 45727971.23 | K4: =Indicadores!L$37 -> 59735970.85
A7: 2014 | B7: 2015 | C7: 2016 | D7: 2017 | E7: 2018 | F7: 2019 | G7: 2020 | H7: 2021 | I7: 2022 | J7: 2023 | K7: 2024 | L7: AÑO
A11: =Indicadores!B$37 -> -12943000 | B11: =Indicadores!C$37 -> -5019900.588
